Workbook

Sheet גיליון1
A1: =[1]הערות!A1 -> V2.01 | B1: =[1]הערות!C2 -> הראל חברה לביטוח בע"מ | AU1: 'נספחים ב וג'!$
B2: דו"ח חודשי , שיעורי ההשקעות ורכוש קבוע מסך כל ההתחייבויות לתקופה שנסתיימה ביום - | L2: 2024-11-30 | AI2: =AJ2-1 ->  | AO2: =#REF!-1 ->  | AP2: =AQ2-1 -> 64 | AQ2: 65 | AR2: 66 | AS2: 67 | AT2: =AU2-1 -> 68 | AU2: 69 | AV2: =AU2+1 -> 70 | AW2: =AV2+1 -> 71 | AX2: 72 | AY2: 73 | AZ2: 74 | BA2: 75 | BB2: 76 | BC2: 77 | BD2: 78 | BE2: 79 | BF2: 80 | BG2: 81 | BH2: 82 | BI2: 83 | BJ2: 84 | BK2: 85 | BL2: 86 | BM2: 87 | BN2: 88 | BO2: 89 | BP2: 90 | BQ2: 91 | BR2: 92 | BS2: 93 | BT2: 94 | BU2: 95 | BV2: 96 | BW2: 97 | BX2: 98 | CF2: =BX2+1 -> 99
B3: =CONCATENATE([1]הערות!$G$103) -> הסכומים באלפי ש"ח | K3: =CONCATENATE(I1) ->  | AR3: =AQ3+1 -> 1 | AS3: 2 | AT3: 3 | AU3: 4 | AV3: 5 | AW3: 6 | AX3: 7 | AY3: 8 | AZ3: 9 | BA3: 10 | BB3: 11 | BC3: 12 | BD3: 13 | BE3: 14 | BF3: 15 | BG3: 16 | BH3: 17 | BI3: 18 | BJ3: 19 | BK3: 20 | BL3: 21 | BM3: 22 | BN3: 23 | BO3: 24 | BP3: 25 | BQ3: 26 | BR3: 27 | BS3: 28 | BT3: 29 | BU3: 30 | BV3: 31 | BW3: 32 | BX3: 33 | CF3: =BX3+1 -> 34
J6: סה"כ משתתף ברווחים | K6: ביטוח חיים
K7: 10 | L7: 11 | M7: 12 | N7: 13
I8: חזרה | K8: ='[2]נספחים ב וג'!$B$10 -> קרן ח' | L8: ='[2]נספחים ב וג'!$B$11 -> קרן ט' | M8: ='[2]נספחים ב וג'!$B$12 -> קרן י' | N8: ='[2]נספחים ב וג'!$B$13 -> קרן י' פוליסות שהונפקו לאחר 1.1.04 | O8: ='[2]נספחים ב וג'!$C$30 -> הראל-מסלול כללי | P8: ='[2]נספחים ב וג'!$C$31 -> הראל אשראי ואג"ח | Q8: ='[2]נספחים ב וג'!$C$32 -> הראל אשראי ואג"ח עם מניות (עד 25% מניות) | R8: ='[2]נספחים ב וג'!$C$33 -> הראל-מסלול מניות | S8: ='[2]נספחים ב וג'!$C$34 -> הראל מסלול כספי (שקלי) | T8: ='[2]נספחים ב וג'!$C$35 -> הראל מסלול משתתף ברווחים כספי (שקלי) | U8: ='[2]נספחים ב וג'!$C$36 -> הראל מסלול משתתף ברווחים אשראי ואג"ח | V8: ='[2]נספחים ב וג'!$C$37 -> הראל-מסלול משתתף ברווחים לפחות 75% מניות | W8: ='[2]נספחים ב וג'!$C$38 -> הראל-מסלול לבני 50 ומטה | X8: ='[2]נספחים ב וג'!$C$39 -> הראל-מסלול לבני 50 עד 60 | Y8: ='[2]נספחים ב וג'!$C$40 -> הראל-מסלול לבני 60 ומעלה | Z8: ='[2]נספחים ב וג'!$C$41 -> הראל-מסלול בסיסי למקבלי קצבה | AA8: ='[2]נספחים ב וג'!$C$42 -> הראל חברה לביטוח בע"מ מדרגות עד 50 | AB8: ='[2]נספחים ב וג'!$C$43 -> הראל מסלול לגילאי 50 עד 60 | AC8: ='[2]נספחים ב וג'!$C$44 -> הראל מסלול לגילאי 60 ומעלה | AD8: ='[2]נספחים ב וג'!$C$45 -> הראל מסלול בסיסי למקבלי קצבה | AE8: ='[2]נספחים ב וג'!$C$46 -> הראל מסלול עוקב מדד 500 P&S | AF8: ='[2]נספחים ב וג'!$C$47 -> הראל עוקב מדדי אג"ח | AG8: ='[2]נספחים ב וג'!$C$48 -> הראל מסלול עוקב מדדים גמיש | AH8: ='[2]נספחים ב וג'!$C$49 -> הראל מסלול משולב סחיר | AI8: הראל מסלול קיימות | AJ8: עוקב מדדי מניות | AK8: הראל מסלול עוקב מדדים- אג"ח עם מניות (עד 25% מניות) | AL8: הראל מסלול הלכה | AM8: הראל מסלול אג"ח סחיר | AN8: הראל מסלול מניות סחיר | AO8: הראל מסלול סחיר- אג"ח עם מניות (עד 25% מניות) | AP8: הראל fidelity מסלול מניות | AQ8: הראל fidelity מסלול כללי | AR8: =INDIRECT(CONCATENATE($AU$1,"C$",AR$2)) ->  | AU8: =INDIRECT(CONCATENATE($AU$1,"C$",AU$2)) ->  | AV8: =INDIRECT(CONCATENATE($AU$1,"C$",AV$2)) ->  | CG8: אחר
A9: שורה | K9: =IF('[2]נספחים ב וג'!$N$10=0,0,CONCATENATE(VLOOKUP($B$1,[2]הערות!$D$89:$F$111,3,0),"0",K7)) -> 259010 | L9: =IF('[2]נספחים ב וג'!$N$11=0,0,CONCATENATE(VLOOKUP($B$1,[2]הערות!$D$89:$F$111,3,0),"0",L7)) -> 259011 | M9: =IF('[2]נספחים ב וג'!$N$12=0,0,CONCATENATE(VLOOKUP($B$1,[2]הערות!$D$89:$F$111,3,0),"0",M7)) -> 259012 | N9: =IF('[2]נספחים ב וג'!$N$13=0,0,CONCATENATE(VLOOKUP($B$1,[2]הערות!$D$89:$F$111,3,0),"0",N7)) -> 259013 | O9: ='[2]נספחים ב וג'!$B$30 -> 88 | P9: ='[2]נספחים ב וג'!$B$31 -> 89 | Q9: ='[2]נספחים ב וג'!$B$32 -> 90 | R9: ='[2]נספחים ב וג'!$B$33 -> 92 | S9: ='[2]נספחים ב וג'!$B$34 -> 93 | T9: ='[2]נספחים ב וג'!$B$35 -> 195 | U9: ='[2]נספחים ב וג'!$B$36 -> 196 | V9: ='[2]נספחים ב וג'!$B$37 -> 197 | W9: ='[2]נספחים ב וג'!$B$38 -> 9562 | X9: ='[2]נספחים ב וג'!$B$39 -> 9563 | Y9: ='[2]נספחים ב וג'!$B$40 -> 9564 | Z9: ='[2]נספחים ב וג'!$B$41 -> 9565 | AA9: ='[2]נספחים ב וג'!$B$42 -> 11400 | AB9: ='[2]נספחים ב וג'!$B$43 -> 11401 | AC9: ='[2]נספחים ב וג'!$B$44 -> 11402 | AD9: ='[2]נספחים ב וג'!$B$45 -> 11403 | AE9: ='[2]נספחים ב וג'!$B$46 -> 13434 | AF9: ='[2]נספחים ב וג'!$B$47 -> 13436 | AG9: ='[2]נספחים ב וג'!$B$48 -> 14414 | AH9: ='[2]נספחים ב וג'!$B$49 -> 14210 | AI9: 14211 | AJ9: 15029 | AK9: 15316 | AL9: 15317 | AM9: 15318 | AN9: 15319 | AO9: 15320 | AP9: 15338 | AQ9: 15339 | AR9: =INDIRECT(CONCATENATE($AU$1,"b$",AR$2)) ->  | AU9: =INDIRECT(CONCATENATE($AU$1,"b$",AU$2)) ->  | AV9: =INDIRECT(CONCATENATE($AU$1,"b$",AV$2)) -> 
A10: 10 | B10: 1. | C10: השקעות | J10: 83856455.97 | K10: 3316.799983 | L10: 967354.134 | M10: 25249412.21 | N10: 889720.9837 | O10: 21338873 | P10: 1452024.17 | Q10: 3729568.27 | R10: 3065360.338 | S10: 856960.4896 | T10: 44047.81775 | U10: 57589.24326 | V10: 285035.8882 | W10: 2694830.25 | X10: 1905381.981 | Y10: 3405976.523 | Z10: 3659771.011 | AA10: 29188.33154 | AB10: 161810.1604 | AC10: 261133.7741 | AD10: 2406980.215 | AE10: 2914866.28 | AF10: 406431.57 | AG10: 808071.54 | AH10: 3277370.36 | AI10: 10147.87 | AJ10: 447873.44 | AK10: 34090.11 | AL10: 11614.18 | AM10: 149611.69 | AN10: 118857.53 | AO10: 38833.87 | AP10: 15245.47 | AQ10: 29637.84 | AR10: 0 | AS10: 0 | AT10: 0 | AU10: 0 | AV10: 0 | AW10: 0 | AX10: 0 | AY10: 0 | AZ10: 0 | BA10: 0 | BB10: 0 | BC10: 0 | BD10: 0 | BE10: 0 | BF10: 0 | BG10: 0 | BH10: 0 | BI10: 0 | BJ10: 0 | BK10: 0 | BL10: 0 | BM10: 0 | BN10: 0 | BO10: 0 | BP10: 0 | BQ10: 0 | BR10: 0 | BS10: 0 | BT10: 0 | BU10: 0 | BV10: 0 | BW10: 0 | BX10: 0 | CF10: 0 | CG10: 3129468.63
A11: =A10+1 -> 11 | C11: א. | D11: מזומנים ושווי מזומנים | J11: 8001059.62 | K11: 211.1855017 | L11: 75094.54724 | M11: 2235891.19 | N11: 78786.75719 | O11: 1759553.67 | P11: 58570.77386 | Q11: 143033 | R11: 392444.4253 | S11: 69608.55626 | T11: 3577.883739 | U11: 2322.99614 | V11: 36491.87469 | W11: 212825.6263 | X11: 116731.9491 | Y11: 147560.075 | Z11: 209779.2083 | AA11: 2305.163726 | AB11: 9913.190946 | AC11: 11313.32498 | AD11: 137968.8517 | AE11: 1295124.34 | AF11: 13284.66 | AG11: 19579.19 | AH11: 491628.94 | AI11: 1338.75 | AJ11: 9666.45 | AK11: 830.23 | AL11: 1278.82 | AM11: 6463.55 | AN11: 4707.16 | AO11: 4495.99 | AP11: 2161 | AQ11: 3644.98 | AR11: 0 | AS11: 0 | AT11: 0 | AU11: 0 | AV11: 0 | AW11: 0 | AX11: 0 | AY11: 0 | AZ11: 0 | BA11: 0 | BB11: 0 | BC11: 0 | BD11: 0 | BE11: 0 | BF11: 0 | BG11: 0 | BH11: 0 | BI11: 0 | BJ11: 0 | BK11: 0 | BL11: 0 | BM11: 0 | BN11: 0 | BO11: 0 | BP11: 0 | BQ11: 0 | BR11: 0 | BS11: 0 | BT11: 0 | BU11: 0 | BV11: 0 | BW11: 0 | BX11: 0 | CF11: 0 | CG11: 442871.31
A12: 12 | D12: (1 | E12: בישראל | J12: 7699818.334 | K12: 201.441476 | L12: 71629.71094 | M12: 2132727.948 | N12: 75151.5636 | O12: 1673065.399 | P12: 58570.77386 | Q12: 142904.5854 | R12: 364845.7402 | S12: 69608.55626 | T12: 3577.883739 | U12: 2322.99614 | V12: 36491.87469 | W12: 199638.2049 | X12: 108425.9647 | Y12: 139199.4494 | Z12: 185300.1489 | AA12: 2305.163726 | AB12: 9913.190946 | AC12: 11313.32498 | AD12: 137968.8517 | AE12: 1295124.34 | AF12: 13284.66 | AG12: 19579.19 | AH12: 470750.5598 | AI12: 1338.75 | AJ12: 9666.45 | AK12: 830.23 | AL12: 1278.82 | AM12: 6463.55 | AN12: 4707.16 | AO12: 4410.591995 | AP12: 2161 | AQ12: 3644.98 | AR12: 0 | AS12: 0 | AT12: 0 | AU12: 0 | AV12: 0 | AW12: 0 | AX12: 0 | AY12: 0 | AZ12: 0 | BA12: 0 | BB12: 0 | BC12: 0 | BD12: 0 | BE12: 0 | BF12: 0 | BG12: 0 | BH12: 0 | BI12: 0 | BJ12: 0 | BK12: 0 | BL12: 0 | BM12: 0 | BN12: 0 | BO12: 0 | BP12: 0 | BQ12: 0 | BR12: 0 | BS12: 0 | BT12: 0 | BU12: 0 | BV12: 0 | BW12: 0 | BX12: 0 | CF12: 0 | CG12: 441415.2796
A13: 13 | E13: א) | F13: יתרות מזומנים ועו"ש בשקלים חדשים | J13: 4075230.35 | K13: 132.2888562 | L13: 47040.02728 | M13: 1400586.147 | N13: 49352.86706 | O13: 1019454.05 | P13: 39766.1699 | Q13: 89788.94 | R13: 194809.2029 | S13: 67299.7681 | T13: 3459.211896 | U13: 1577.180104 | V13: 18114.54709 | W13: 79948.47947 | X13: 53308.00122 | Y13: 53877.70505 | Z13: 90871.15325 | AA13: 865.9405264 | AB13: 4527.058781 | AC13: 4130.764955 | AD13: 59764.68675 | AE13: 160148.91 | AF13: 8381.92 | AG13: 16858.47 | AH13: 193166.72 | AI13: 997.32 | AJ13: 9369.31 | AK13: 768.38 | AL13: 1004.13 | AM13: 6231.6 | AN13: 4331.11 | AO13: 3555.57 | AP13: 2044.51 | AQ13: 3356.62 | CG13: 386341.59
A14: 14 | E14: ב) | F14: יתרות מזומנים ועו"ש נקובים במט"ח | J14: 2354869.984 | K14: 63.88368324 | L14: 22716.12507 | M14: 676357.8154 | N14: 23833.01979 | O14: 631250.8289 | P14: 15263.64326 | Q14: 47982.70544 | R14: 167733.9096 | S14: 3.005516292 | T14: 0.1544837078 | U14: 605.376744 | V14: 18163.21525 | W14: 116841.4062 | X14: 52226.12613 | Y14: 81842.86739 | Z14: 89878.24243 | AA14: 1408.372394 | AB14: 5140.549558 | AC14: 6915.837029 | AD14: 75211.19821 | AE14: 103520.2 | AF14: 4902.74 | AG14: 2720.72 | AH14: 156324.6698 | AI14: 341.43 | AJ14: 297.14 | AK14: 61.85 | AL14: 217.14 | AM14: 31.26 | AN14: 272.42 | AO14: 783.6019945 | AP14: 116.49 | AQ14: 288.36 | CG14: 51553.67961
A15: 15 | E15: ג) | F15: פח"ק/פר"י | J15: 120383.42 | K15: 5.234613899 | L15: 1861.353917 | M15: 55420.59946 | N15: 1952.872006 | O15: 22051.52 | P15: 3540.960707 | Q15: 5132.83 | R15: 2185.864953 | S15: 2305.782641 | T15: 118.5173585 | U15: 140.4392927 | V15: 203.2550466 | W15: 2799.478202 | X15: 2862.978195 | Y15: 3453.418856 | Z15: 4495.881565 | AA15: 30.32179779 | AB15: 243.1318054 | AC15: 264.7711437 | AD15: 2956.878435 | AH15: 4424.79 | AL15: 57.55 | AM15: 200.69 | AN15: 92.1 | AO15: 71.09 | CG15: 3511.11
A16: 16 | E16: ד) | F16: פק"מ לתקופה של עד שלושה חודשים | J16: 1032500.2 | K16: 0.03432273831 | L16: 12.20467538 | M16: 363.3862533 | N16: 12.80474856 | O16: 309 | P16: 0 | Q16: 0.11 | R16: 116.7626931 | S16: 0 | T16: 0 | U16: 0 | V16: 10.8573069 | W16: 48.84099189 | X16: 28.85919922 | Y16: 25.4581425 | Z16: 54.87166998 | AA16: 0.5290081125 | AB16: 2.450800785 | AC16: 1.951857503 | AD16: 36.08833002 | AE16: 1031455.23 | AN16: 11.53 | AO16: 0.33 | CG16: 8.9
A17: 17 | E17: ה) | F17: פיקדון צמוד מדד עד שלושה חודשים | J17: 0 | K17: 0 | L17: 0 | M17: 0 | N17: 0 | P17: 0 | R17: 0 | S17: 0 | T17: 0 | U17: 0 | V17: 0 | W17: 0 | X17: 0 | Y17: 0 | Z17: 0 | AA17: 0 | AB17: 0 | AC17: 0 | AD17: 0 | CG17: 0
A18: 18 | E18: ו) | F18: פיקדון צמוד מט"ח עד שלושה חודשים (פצ"מ) | J18: 0 | K18: 0 | L18: 0 | M18: 0 | N18: 0 | P18: 0 | R18: 0 | S18: 0 | T18: 0 | U18: 0 | V18: 0 | W18: 0 | X18: 0 | Y18: 0 | Z18: 0 | AA18: 0 | AB18: 0 | AC18: 0 | AD18: 0 | CG18: 0
A19: 19 | E19: ז) | F19: פיקדונות במט"ח עד שלושה חודשים | J19: 116834.38 | K19: 0 | L19: 0 | M19: 0 | N19: 0 | P19: 0 | R19: 0 | S19: 0 | T19: 0 | U19: 0 | V19: 0 | W19: 0 | X19: 0 | Y19: 0 | Z19: 0 | AA19: 0 | AB19: 0 | AC19: 0 | AD19: 0 | AH19: 116834.38 | CG19: 0
A20: 20 | D20: (2 | E20: בחו"ל | J20: 301241.2861 | K20: 9.744025625 | L20: 3464.836302 | M20: 103163.2422 | N20: 3635.193585 | O20: 86488.27106 | P20: 0 | Q20: 128.4145552 | R20: 27598.68515 | S20: 0 | T20: 0 | U20: 0 | V20: 0 | W20: 13187.42141 | X20: 8305.984314 | Y20: 8360.625579 | Z20: 24479.05936 | AA20: 0 | AB20: 0 | AC20: 0 | AD20: 0 | AE20: 0 | AF20: 0 | AG20: 0 | AH20: 20878.38018 | AI20: 0 | AJ20: 0 | AK20: 0 | AL20: 0 | AM20: 0 | AN20: 0 | AO20: 85.39800548 | AP20: 0 | AQ20: 0 | AR20: 0 | AS20: 0 | AT20: 0 | AU20: 0 | AV20: 0 | AW20: 0 | AX20: 0 | AY20: 0 | AZ20: 0 | BA20: 0 | BB20: 0 | BC20: 0 | BD20: 0 | BE20: 0 | BF20: 0 | BG20: 0 | BH20: 0 | BI20: 0 | BJ20: 0 | BK20: 0 | BL20: 0 | BM20: 0 | BN20: 0 | BO20: 0 | BP20: 0 | BQ20: 0 | BR20: 0 | BS20: 0 | BT20: 0 | BU20: 0 | BV20: 0 | BW20: 0 | BX20: 0 | CF20: 0 | CG20: 1456.030387
A21: 21 | E21: א) | F21: יתרות מזומנים ועו"ש נקובים במט"ח | J21: 301241.2861 | K21: 9.744025625 | L21: 3464.836302 | M21: 103163.2422 | N21: 3635.193585 | O21: 86488.27106 | P21: 0 | Q21: 128.4145552 | R21: 27598.68515 | W21: 13187.42141 | X21: 8305.984314 | Y21: 8360.625579 | Z21: 24479.05936 | AH21: 20878.38018 | AO21: 85.39800548 | CG21: 1456.030387
A22: 22 | E22: ב) | F22: פיקדונות במט"ח עד שלושה חודשים | J22: 0 | K22: 0 | L22: 0 | M22: 0 | N22: 0 | P22: 0 | R22: 0 | S22: 0 | T22: 0 | U22: 0 | V22: 0 | W22: 0 | X22: 0 | Y22: 0 | Z22: 0 | AA22: 0 | AB22: 0 | AC22: 0 | AD22: 0 | CG22: 0
A23: 23 | W23: 0 | X23: 0 | Y23: 0 | Z23: 0 | AA23: 0 | AB23: 0 | AC23: 0 | AD23: 0 | CG23: 0
A24: 24 | C24: ב. | D24: ניירות ערך (למעט בחברות מוחזקות) | J24: 64430991.7 | K24: 2652.249864 | L24: 736858.5034 | M24: 18428839.41 | N24: 649382.4486 | O24: 16367678.74 | P24: 1079528.518 | Q24: 3187311.42 | R24: 2679906.582 | S24: 786947.2659 | T24: 40449.13409 | U24: 42815.56169 | V24: 249194.0485 | W24: 2195723.193 | X24: 1562098.109 | Y24: 2725360.303 | Z24: 2906035.458 | AA24: 23782.38723 | AB24: 132657.5711 | AC24: 208951.4173 | AD24: 1911258.882 | AE24: 1635109.32 | AF24: 394009.46 | AG24: 785345.37 | AH24: 2801136.15 | AI24: 8606.21 | AJ24: 437296.04 | AK24: 32596.24 | AL24: 10331.88 | AM24: 141575.55 | AN24: 111013.26 | AO24: 34204.98 | AP24: 11666.01 | AQ24: 25093.34 | AR24: 0 | AS24: 0 | AT24: 0 | AU24: 0 | AV24: 0 | AW24: 0 | AX24: 0 | AY24: 0 | AZ24: 0 | BA24: 0 | BB24: 0 | BC24: 0 | BD24: 0 | BE24: 0 | BF24: 0 | BG24: 0 | BH24: 0 | BI24: 0 | BJ24: 0 | BK24: 0 | BL24: 0 | BM24: 0 | BN24: 0 | BO24: 0 | BP24: 0 | BQ24: 0 | BR24: 0 | BS24: 0 | BT24: 0 | BU24: 0 | BV24: 0 | BW24: 0 | BX24: 0 | CF24: 0 | CG24: 2085576.69
A25: 25 | D25: (1 | E25: אגרות חוב ממשלתיות: | J25: 15513376.79 | K25: 1334.535181 | L25: 268297.988 | M25: 4477755.515 | N25: 157783.9915 | O25: 3673472.49 | P25: 535925.7208 | Q25: 877797.63 | R25: 249532.6713 | S25: 786947.2659 | T25: 40449.13409 | U25: 21255.53922 | V25: 23203.06872 | W25: 524128.562 | X25: 449002.9337 | Y25: 802437.9766 | Z25: 690238.7237 | AA25: 5676.958034 | AB25: 38130.53627 | AC25: 61522.34341 | AD25: 453960.3563 | AE25: 326692.51 | AF25: 0 | AG25: 0 | AH25: 478290.04 | AI25: 0 | AJ25: 0 | AK25: 0 | AL25: 10157.28 | AM25: 0 | AN25: 0 | AO25: 9062.25 | AP25: 0 | AQ25: 0 | AR25: 0 | AS25: 0 | AT25: 0 | AU25: 0 | AV25: 0 | AW25: 0 | AX25: 0 | AY25: 0 | AZ25: 0 | BA25: 0 | BB25: 0 | BC25: 0 | BD25: 0 | BE25: 0 | BF25: 0 | BG25: 0 | BH25: 0 | BI25: 0 | BJ25: 0 | BK25: 0 | BL25: 0 | BM25: 0 | BN25: 0 | BO25: 0 | BP25: 0 | BQ25: 0 | BR25: 0 | BS25: 0 | BT25: 0 | BU25: 0 | BV25: 0 | BW25: 0 | BX25: 0 | CF25: 0 | CG25: 550320.77
A26: 26 | E26: א) | F26: בישראל | J26: 15261316.34 | K26: 1333.269328 | L26: 267847.8688 | M26: 4464353.511 | N26: 157311.7411 | O26: 3661641.16 | P26: 523659.5728 | Q26: 873398.38 | R26: 249532.6713 | S26: 786947.2659 | T26: 40449.13409 | U26: 20769.04719 | V26: 23203.06872 | W26: 523567.222 | X26: 447377.4723 | Y26: 800039.8586 | Z26: 687936.5568 | AA26: 5670.87803 | AB26: 37992.49771 | AC26: 61338.48143 | AD26: 452446.2532 | AE26: 248723.53 | AF26: 0 | AG26: 0 | AH26: 359315.17 | AI26: 0 | AJ26: 0 | AK26: 0 | AL26: 10157.28 | AM26: 0 | AN26: 0 | AO26: 8985.45 | AP26: 0 | AQ26: 0 | AR26: 0 | AS26: 0 | AT26: 0 | AU26: 0 | AV26: 0 | AW26: 0 | AX26: 0 | AY26: 0 | AZ26: 0 | BA26: 0 | BB26: 0 | BC26: 0 | BD26: 0 | BE26: 0 | BF26: 0 | BG26: 0 | BH26: 0 | BI26: 0 | BJ26: 0 | BK26: 0 | BL26: 0 | BM26: 0 | BN26: 0 | BO26: 0 | BP26: 0 | BQ26: 0 | BR26: 0 | BS26: 0 | BT26: 0 | BU26: 0 | BV26: 0 | BW26: 0 | BX26: 0 | CF26: 0 | CG26: 547319
A27: 27 | F27: (1) | G27: סחיר | J27: 15142496.46 | K27: 421.6693281 | L27: 149939.5888 | M27: 4464353.511 | N27: 157311.7411 | O27: 3661641.16 | P27: 523659.5728 | Q27: 873398.38 | R27: 249532.6713 | S27: 786947.2659 | T27: 40449.13409 | U27: 20769.04719 | V27: 23203.06872 | W27: 523567.222 | X27: 447377.4723 | Y27: 800039.8586 | Z27: 687936.5568 | AA27: 5670.87803 | AB27: 37992.49771 | AC27: 61338.48143 | AD27: 452446.2532 | AE27: 248723.53 | AF27: 0 | AG27: 0 | AH27: 359315.17 | AI27: 0 | AJ27: 0 | AK27: 0 | AL27: 10157.28 | AM27: 0 | AN27: 0 | AO27: 8985.45 | AP27: 0 | AQ27: 0 | AR27: 0 | AS27: 0 | AT27: 0 | AU27: 0 | AV27: 0 | AW27: 0 | AX27: 0 | AY27: 0 | AZ27: 0 | BA27: 0 | BB27: 0 | BC27: 0 | BD27: 0 | BE27: 0 | BF27: 0 | BG27: 0 | BH27: 0 | BI27: 0 | BJ27: 0 | BK27: 0 | BL27: 0 | BM27: 0 | BN27: 0 | BO27: 0 | BP27: 0 | BQ27: 0 | BR27: 0 | BS27: 0 | BT27: 0 | BU27: 0 | BV27: 0 | BW27: 0 | BX27: 0 | CF27: 0 | CG27: 547319
A28: 28 | G28: (א) | H28: צמוד מדד | J28: 8690330.59 | K28: 225.4947487 | L28: 80182.71107 | M28: 2387387.951 | N28: 84125.09323 | O28: 3025079.6 | P28: 188190.6348 | Q28: 440663.02 | R28: 0 | S28: 0 | T28: 0 | U28: 7463.895207 | V28: 0 | W28: 486084.7038 | X28: 283856.2538 | Y28: 565576.2454 | Z28: 442941.741 | AA28: 5264.896182 | AB28: 24105.83622 | AC28: 43362.32458 | AD28: 291316.589 | AL28: 3251.63 | AO28: 557.74 | CG28: 330694.23
A29: 29 | G29: (ג) | H29: לא צמוד בריבית קבועה | J29: 3918262.5 | K29: 151.2214131 | L29: 53772.17404 | M29: 1601031.428 | N29: 56416.01654 | O29: 513586.77 | P29: 281350.4697 | Q29: 374224.41 | R29: 9265.470114 | S29: 29201.28243 | T29: 1500.947572 | U29: 11158.74031 | V29: 861.559886 | W29: 32223.72733 | X29: 138046.6383 | Y29: 229391.1828 | Z29: 212682.7195 | AA29: 349.0226655 | AB29: 11723.29166 | AC29: 17587.25725 | AD29: 139878.4505 | AE29: 50504.5 | AH29: 13333.12 | AL29: 3698.26 | AO29: 7007.32 | CG29: 129316.52
A30: 30 | G30: (ד) | H30: לא צמוד בריבית משתנה | J30: 558909.53 | K30: 27.14245468 | L30: 9651.469107 | M30: 287366.2009 | N30: 10126.00756 | O30: 88463.5 | P30: 45021.11179 | Q30: 42328.59 | R30: 1.070461926 | S30: 0 | T30: 0 | U30: 1785.598209 | V30: 0.0995380745 | W30: 3703.28882 | X30: 19278.71932 | Y30: 2948.110486 | Z30: 25190.59074 | AA30: 40.11118024 | AB30: 1637.200676 | AC30: 226.0295139 | AD30: 16567.49926 | AL30: 777.98 | AO30: 711.41 | CG30: 3057.8
A31: 31 | G31: (ה) | H31: צמוד מט"ח | J31: 0 | K31: 0 | L31: 0 | M31: 0 | N31: 0 | P31: 0 | R31: 0 | S31: 0 | T31: 0 | U31: 0 | V31: 0 | W31: 0 | X31: 0 | Y31: 0 | Z31: 0 | AA31: 0 | AB31: 0 | AC31: 0 | AD31: 0 | CG31: 0
A32: 32 | G32: (ו) | H32: מק"מ | J32: 1974993.84 | K32: 17.81071157 | L32: 6333.234578 | M32: 188567.9309 | N32: 6644.623787 | O32: 34511.29 | P32: 9097.356531 | Q32: 16182.36 | R32: 240266.1307 | S32: 757745.9835 | T32: 38948.18651 | U32: 360.8134692 | V32: 22341.4093 | W32: 1555.501997 | X32: 6195.86084 | Y32: 2124.319917 | Z32: 7121.505452 | AA32: 16.84800295 | AB32: 526.16916 | AC32: 162.8700825 | AD32: 4683.714548 | AE32: 198219.03 | AH32: 345982.05 | AL32: 2429.41 | AO32: 708.98 | CG32: 84250.45
A33: 33 | F33: (2) | G33: לא סחיר | J33: 118819.88 | K33: 911.6 | L33: 117908.28 | M33: 0 | N33: 0 | O33: 0 | P33: 0 | Q33: 0 | R33: 0 | S33: 0 | T33: 0 | U33: 0 | V33: 0 | W33: 0 | X33: 0 | Y33: 0 | Z33: 0 | AA33: 0 | AB33: 0 | AC33: 0 | AD33: 0 | AE33: 0 | AF33: 0 | AG33: 0 | AH33: 0 | AI33: 0 | AJ33: 0 | AK33: 0 | AL33: 0 | AM33: 0 | AN33: 0 | AO33: 0 | AP33: 0 | AQ33: 0 | AR33: 0 | AS33: 0 | AT33: 0 | AU33: 0 | AV33: 0 | AW33: 0 | AX33: 0 | AY33: 0 | AZ33: 0 | BA33: 0 | BB33: 0 | BC33: 0 | BD33: 0 | BE33: 0 | BF33: 0 | BG33: 0 | BH33: 0 | BI33: 0 | BJ33: 0 | BK33: 0 | BL33: 0 | BM33: 0 | BN33: 0 | BO33: 0 | BP33: 0 | BQ33: 0 | BR33: 0 | BS33: 0 | BT33: 0 | BU33: 0 | BV33: 0 | BW33: 0 | BX33: 0 | CF33: 0 | CG33: 0
A34: 34 | G34: (א) | H34: אג"ח מיועדות - הסכמי "חץ" כולל אג"ח של חברת החשמל | J34: 118819.88 | K34: 911.6 | L34: 117908.28 | M34: 0 | N34: 0 | P34: 0 | R34: 0 | S34: 0 | T34: 0 | U34: 0 | V34: 0 | W34: 0 | X34: 0 | Y34: 0 | Z34: 0 | AA34: 0 | AB34: 0 | AC34: 0 | AD34: 0 | CG34: 0
A35: 35 | G35: (ב) | H35: אג"ח לא סחירות אחרות | J35: 0 | K35: 0 | L35: 0 | M35: 0 | N35: 0 | P35: 0 | R35: 0 | S35: 0 | T35: 0 | U35: 0 | V35: 0 | W35: 0 | X35: 0 | Y35: 0 | Z35: 0 | AA35: 0 | AB35: 0 | AC35: 0 | AD35: 0 | CG35: 0
A36: 36 | E36: ב) | F36: בחו"ל | J36: 252060.45 | K36: 1.265852774 | L36: 450.1191614 | M36: 13402.0046 | N36: 472.250388 | O36: 11831.33 | P36: 12266.14797 | Q36: 4399.25 | R36: 0 | S36: 0 | T36: 0 | U36: 486.4920254 | V36: 0 | W36: 561.3399963 | X36: 1625.461444 | Y36: 2398.118014 | Z36: 2302.166975 | AA36: 6.080003711 | AB36: 138.0385559 | AC36: 183.861986 | AD36: 1514.103025 | AE36: 77968.98 | AF36: 0 | AG36: 0 | AH36: 118974.87 | AI36: 0 | AJ36: 0 | AK36: 0 | AL36: 0 | AM36: 0 | AN36: 0 | AO36: 76.8 | AP36: 0 | AQ36: 0 | AR36: 0 | AS36: 0 | AT36: 0 | AU36: 0 | AV36: 0 | AW36: 0 | AX36: 0 | AY36: 0 | AZ36: 0 | BA36: 0 | BB36: 0 | BC36: 0 | BD36: 0 | BE36: 0 | BF36: 0 | BG36: 0 | BH36: 0 | BI36: 0 | BJ36: 0 | BK36: 0 | BL36: 0 | BM36: 0 | BN36: 0 | BO36: 0 | BP36: 0 | BQ36: 0 | BR36: 0 | BS36: 0 | BT36: 0 | BU36: 0 | BV36: 0 | BW36: 0 | BX36: 0 | CF36: 0 | CG36: 3001.77
A37: 37 | F37: (1) | G37: סחיר | J37: 252060.45 | K37: 1.265852774 | L37: 450.1191614 | M37: 13402.0046 | N37: 472.250388 | O37: 11831.33 | P37: 12266.14797 | Q37: 4399.25 | R37: 0 | S37: 0 | T37: 0 | U37: 486.4920254 | V37: 0 | W37: 561.3399963 | X37: 1625.461444 | Y37: 2398.118014 | Z37: 2302.166975 | AA37: 6.080003711 | AB37: 138.0385559 | AC37: 183.861986 | AD37: 1514.103025 | AE37: 77968.98 | AF37: 0 | AG37: 0 | AH37: 118974.87 | AI37: 0 | AJ37: 0 | AK37: 0 | AL37: 0 | AM37: 0 | AN37: 0 | AO37: 76.8 | AP37: 0 | AQ37: 0 | AR37: 0 | AS37: 0 | AT37: 0 | AU37: 0 | AV37: 0 | AW37: 0 | AX37: 0 | AY37: 0 | AZ37: 0 | BA37: 0 | BB37: 0 | BC37: 0 | BD37: 0 | BE37: 0 | BF37: 0 | BG37: 0 | BH37: 0 | BI37: 0 | BJ37: 0 | BK37: 0 | BL37: 0 | BM37: 0 | BN37: 0 | BO37: 0 | BP37: 0 | BQ37: 0 | BR37: 0 | BS37: 0 | BT37: 0 | BU37: 0 | BV37: 0 | BW37: 0 | BX37: 0 | CF37: 0 | CG37: 3001.77
A38: 38 | G38: (א) | H38: ממשלת ישראל שהונפקו בחו"ל | J38: 0 | K38: 0 | L38: 0 | M38: 0 | N38: 0 | P38: 0 | R38: 0 | S38: 0 | T38: 0 | U38: 0 | V38: 0 | W38: 0 | X38: 0 | Y38: 0 | Z38: 0 | AA38: 0 | AB38: 0 | AC38: 0 | AD38: 0 | CG38: 0
A39: 39 | G39: (ב) | H39: שהנפיקה ממשלה זרה | J39: 252060.45 | K39: 1.265852774 | L39: 450.1191614 | M39: 13402.0046 | N39: 472.250388 | O39: 11831.33 | P39: 12266.14797 | Q39: 4399.25 | R39: 0 | S39: 0 | T39: 0 | U39: 486.4920254 | V39: 0 | W39: 561.3399963 | X39: 1625.461444 | Y39: 2398.118014 | Z39: 2302.166975 | AA39: 6.080003711 | AB39: 138.0385559 | AC39: 183.861986 | AD39: 1514.103025 | AE39: 77968.98 | AH39: 118974.87 | AO39: 76.8 | CG39: 3001.77
A40: 40 | F40: (2) | G40: לא סחיר | J40: 0 | K40: 0 | L40: 0 | M40: 0 | N40: 0 | O40: 0 | P40: 0 | Q40: 0 | R40: 0 | S40: 0 | T40: 0 | U40: 0 | V40: 0 | W40: 0 | X40: 0 | Y40: 0 | Z40: 0 | AA40: 0 | AB40: 0 | AC40: 0 | AD40: 0 | AE40: 0 | AF40: 0 | AG40: 0 | AH40: 0 | AI40: 0 | AJ40: 0 | AK40: 0 | AL40: 0 | AM40: 0 | AN40: 0 | AO40: 0 | AP40: 0 | AQ40: 0 | AR40: 0 | AS40: 0 | AT40: 0 | AU40: 0 | AV40: 0 | AW40: 0 | AX40: 0 | AY40: 0 | AZ40: 0 | BA40: 0 | BB40: 0 | BC40: 0 | BD40: 0 | BE40: 0 | BF40: 0 | BG40: 0 | BH40: 0 | BI40: 0 | BJ40: 0 | BK40: 0 | BL40: 0 | BM40: 0 | BN40: 0 | BO40: 0 | BP40: 0 | BQ40: 0 | BR40: 0 | BS40: 0 | BT40: 0 | BU40: 0 | BV40: 0 | BW40: 0 | BX40: 0 | CF40: 0 | CG40: 0
A41: 41 | G41: (א) | H41: ממשלת ישראל שהונפקו בחו"ל | J41: 0 | K41: 0 | L41: 0 | M41: 0 | N41: 0 | P41: 0 | R41: 0 | S41: 0 | T41: 0 | U41: 0 | V41: 0 | W41: 0 | X41: 0 | Y41: 0 | Z41: 0 | AA41: 0 | AB41: 0 | AC41: 0 | AD41: 0 | CG41: 0
A42: 42 | G42: (ב) | H42: שהנפיקה ממשלה זרה | J42: 0 | K42: 0 | L42: 0 | M42: 0 | N42: 0 | P42: 0 | R42: 0 | S42: 0 | T42: 0 | U42: 0 | V42: 0 | W42: 0 | X42: 0 | Y42: 0 | Z42: 0 | AA42: 0 | AB42: 0 | AC42: 0 | AD42: 0 | CG42: 0
A43: 43 | W43: 0 | X43: 0 | Y43: 0 | Z43: 0 | AA43: 0 | AB43: 0 | AC43: 0 | AD43: 0 | CG43: 0
A44: 44 | D44: (2 | E44: תעודות חוב מסחריות: | J44: 0 | K44: 0 | L44: 0 | M44: 0 | N44: 0 | O44: 0 | P44: 0 | Q44: 0 | R44: 0 | S44: 0 | T44: 0 | U44: 0 | V44: 0 | W44: 0 | X44: 0 | Y44: 0 | Z44: 0 | AA44: 0 | AB44: 0 | AC44: 0 | AD44: 0 | AE44: 0 | AF44: 0 | AG44: 0 | AH44: 0 | AI44: 0 | AJ44: 0 | AK44: 0 | AL44: 0 | AM44: 0 | AN44: 0 | AO44: 0 | AP44: 0 | AQ44: 0 | AR44: 0 | AS44: 0 | AT44: 0 | AU44: 0 | AV44: 0 | AW44: 0 | AX44: 0 | AY44: 0 | AZ44: 0 | BA44: 0 | BB44: 0 | BC44: 0 | BD44: 0 | BE44: 0 | BF44: 0 | BG44: 0 | BH44: 0 | BI44: 0 | BJ44: 0 | BK44: 0 | BL44: 0 | BM44: 0 | BN44: 0 | BO44: 0 | BP44: 0 | BQ44: 0 | BR44: 0 | BS44: 0 | BT44: 0 | BU44: 0 | BV44: 0 | BW44: 0 | BX44: 0 | CF44: 0 | CG44: 0
A45: 45 | E45: א) | F45: בישראל | J45: 0 | K45: 0 | L45: 0 | M45: 0 | N45: 0 | O45: 0 | P45: 0 | Q45: 0 | R45: 0 | S45: 0 | T45: 0 | U45: 0 | V45: 0 | W45: 0 | X45: 0 | Y45: 0 | Z45: 0 | AA45: 0 | AB45: 0 | AC45: 0 | AD45: 0 | AE45: 0 | AF45: 0 | AG45: 0 | AH45: 0 | AI45: 0 | AJ45: 0 | AK45: 0 | AL45: 0 | AM45: 0 | AN45: 0 | AO45: 0 | AP45: 0 | AQ45: 0 | AR45: 0 | AS45: 0 | AT45: 0 | AU45: 0 | AV45: 0 | AW45: 0 | AX45: 0 | AY45: 0 | AZ45: 0 | BA45: 0 | BB45: 0 | BC45: 0 | BD45: 0 | BE45: 0 | BF45: 0 | BG45: 0 | BH45: 0 | BI45: 0 | BJ45: 0 | BK45: 0 | BL45: 0 | BM45: 0 | BN45: 0 | BO45: 0 | BP45: 0 | BQ45: 0 | BR45: 0 | BS45: 0 | BT45: 0 | BU45: 0 | BV45: 0 | BW45: 0 | BX45: 0 | CF45: 0 | CG45: 0
A46: 46 | F46: (1) | G46: סחיר | J46: 0 | K46: 0 | L46: 0 | M46: 0 | N46: 0 | O46: 0 | P46: 0 | Q46: 0 | R46: 0 | S46: 0 | T46: 0 | U46: 0 | V46: 0 | W46: 0 | X46: 0 | Y46: 0 | Z46: 0 | AA46: 0 | AB46: 0 | AC46: 0 | AD46: 0 | AE46: 0 | AF46: 0 | AG46: 0 | AH46: 0 | AI46: 0 | AJ46: 0 | AK46: 0 | AL46: 0 | AM46: 0 | AN46: 0 | AO46: 0 | AP46: 0 | AQ46: 0 | AR46: 0 | AS46: 0 | AT46: 0 | AU46: 0 | AV46: 0 | AW46: 0 | AX46: 0 | AY46: 0 | AZ46: 0 | BA46: 0 | BB46: 0 | BC46: 0 | BD46: 0 | BE46: 0 | BF46: 0 | BG46: 0 | BH46: 0 | BI46: 0 | BJ46: 0 | BK46: 0 | BL46: 0 | BM46: 0 | BN46: 0 | BO46: 0 | BP46: 0 | BQ46: 0 | BR46: 0 | BS46: 0 | BT46: 0 | BU46: 0 | BV46: 0 | BW46: 0 | BX46: 0 | CF46: 0 | CG46: 0
A47: 47 | G47: (א) | H47: דרוג AA- ומעלה | J47: 0 | K47: 0 | L47: 0 | M47: 0 | N47: 0 | O47: 0 | P47: 0 | Q47: 0 | R47: 0 | S47: 0 | T47: 0 | U47: 0 | V47: 0 | W47: 0 | X47: 0 | Y47: 0 | Z47: 0 | AA47: 0 | AB47: 0 | AC47: 0 | AD47: 0 | AE47: 0 | AF47: 0 | AG47: 0 | AH47: 0 | AI47: 0 | AJ47: 0 | AK47: 0 | AL47: 0 | AM47: 0 | AN47: 0 | AO47: 0 | AP47: 0 | AQ47: 0 | AR47: 0 | AS47: 0 | AT47: 0 | AU47: 0 | AV47: 0 | AW47: 0 | AX47: 0 | AY47: 0 | AZ47: 0 | BA47: 0 | BB47: 0 | BC47: 0 | BD47: 0 | BE47: 0 | BF47: 0 | BG47: 0 | BH47: 0 | BI47: 0 | BJ47: 0 | BK47: 0 | BL47: 0 | BM47: 0 | BN47: 0 | BO47: 0 | BP47: 0 | BQ47: 0 | BR47: 0 | BS47: 0 | BT47: 0 | BU47: 0 | BV47: 0 | BW47: 0 | BX47: 0 | CF47: 0 | CG47: 0
A48: 48 | H48: a | I48: צמוד מדד | J48: 0 | K48: 0 | L48: 0 | M48: 0 | N48: 0 | P48: 0 | R48: 0 | S48: 0 | T48: 0 | U48: 0 | V48: 0 | W48: 0 | X48: 0 | Y48: 0 | Z48: 0 | AA48: 0 | AB48: 0 | AC48: 0 | AD48: 0 | CG48: 0
A49: 49 | H49: b | I49: לא צמוד | J49: 0 | K49: 0 | L49: 0 | M49: 0 | N49: 0 | P49: 0 | R49: 0 | S49: 0 | T49: 0 | U49: 0 | V49: 0 | W49: 0 | X49: 0 | Y49: 0 | Z49: 0 | AA49: 0 | AB49: 0 | AC49: 0 | AD49: 0 | CG49: 0
A50: 50 | H50: c | I50: צמוד מט"ח | J50: 0 | K50: 0 | L50: 0 | M50: 0 | N50: 0 | P50: 0 | R50: 0 | S50: 0 | T50: 0 | U50: 0 | V50: 0 | W50: 0 | X50: 0 | Y50: 0 | Z50: 0 | AA50: 0 | AB50: 0 | AC50: 0 | AD50: 0 | CG50: 0
A51: 51 | G51: (ב) | H51: דרוג BBB- ועד A+ | J51: 0 | K51: 0 | L51: 0 | M51: 0 | N51: 0 | O51: 0 | P51: 0 | Q51: 0 | R51: 0 | S51: 0 | T51: 0 | U51: 0 | V51: 0 | W51: 0 | X51: 0 | Y51: 0 | Z51: 0 | AA51: 0 | AB51: 0 | AC51: 0 | AD51: 0 | AE51: 0 | AF51: 0 | AG51: 0 | AH51: 0 | AI51: 0 | AJ51: 0 | AK51: 0 | AL51: 0 | AM51: 0 | AN51: 0 | AO51: 0 | AP51: 0 | AQ51: 0 | AR51: 0 | AS51: 0 | AT51: 0 | AU51: 0 | AV51: 0 | AW51: 0 | AX51: 0 | AY51: 0 | AZ51: 0 | BA51: 0 | BB51: 0 | BC51: 0 | BD51: 0 | BE51: 0 | BF51: 0 | BG51: 0 | BH51: 0 | BI51: 0 | BJ51: 0 | BK51: 0 | BL51: 0 | BM51: 0 | BN51: 0 | BO51: 0 | BP51: 0 | BQ51: 0 | BR51: 0 | BS51: 0 | BT51: 0 | BU51: 0 | BV51: 0 | BW51: 0 | BX51: 0 | CF51: 0 | CG51: 0
A52: 52 | H52: a | I52: צמוד מדד | J52: 0 | K52: 0 | L52: 0 | M52: 0 | N52: 0 | P52: 0 | R52: 0 | S52: 0 | T52: 0 | U52: 0 | V52: 0 | W52: 0 | X52: 0 | Y52: 0 | Z52: 0 | AA52: 0 | AB52: 0 | AC52: 0 | AD52: 0 | CG52: 0
A53: 53 | H53: b | I53: לא צמוד | J53: 0 | K53: 0 | L53: 0 | M53: 0 | N53: 0 | P53: 0 | R53: 0 | S53: 0 | T53: 0 | U53: 0 | V53: 0 | W53: 0 | X53: 0 | Y53: 0 | Z53: 0 | AA53: 0 | AB53: 0 | AC53: 0 | AD53: 0 | CG53: 0
A54: 54 | H54: c | I54: צמוד מט"ח | J54: 0 | K54: 0 | L54: 0 | M54: 0 | N54: 0 | P54: 0 | R54: 0 | S54: 0 | T54: 0 | U54: 0 | V54: 0 | W54: 0 | X54: 0 | Y54: 0 | Z54: 0 | AA54: 0 | AB54: 0 | AC54: 0 | AD54: 0 | CG54: 0
A55: 55 | G55: (ג) | H55: דרוג נמוך מ- BBB- או לא מדורג | J55: 0 | K55: 0 | L55: 0 | M55: 0 | N55: 0 | O55: 0 | P55: 0 | Q55: 0 | R55: 0 | S55: 0 | T55: 0 | U55: 0 | V55: 0 | W55: 0 | X55: 0 | Y55: 0 | Z55: 0 | AA55: 0 | AB55: 0 | AC55: 0 | AD55: 0 | AE55: 0 | AF55: 0 | AG55: 0 | AH55: 0 | AI55: 0 | AJ55: 0 | AK55: 0 | AL55: 0 | AM55: 0 | AN55: 0 | AO55: 0 | AP55: 0 | AQ55: 0 | AR55: 0 | AS55: 0 | AT55: 0 | AU55: 0 | AV55: 0 | AW55: 0 | AX55: 0 | AY55: 0 | AZ55: 0 | BA55: 0 | BB55: 0 | BC55: 0 | BD55: 0 | BE55: 0 | BF55: 0 | BG55: 0 | BH55: 0 | BI55: 0 | BJ55: 0 | BK55: 0 | BL55: 0 | BM55: 0 | BN55: 0 | BO55: 0 | BP55: 0 | BQ55: 0 | BR55: 0 | BS55: 0 | BT55: 0 | BU55: 0 | BV55: 0 | BW55: 0 | BX55: 0 | CF55: 0 | CG55: 0
A56: 56 | H56: a | I56: צמוד מדד | J56: 0 | K56: 0 | L56: 0 | M56: 0 | N56: 0 | P56: 0 | R56: 0 | S56: 0 | T56: 0 | U56: 0 | V56: 0 | W56: 0 | X56: 0 | Y56: 0 | Z56: 0 | AA56: 0 | AB56: 0 | AC56: 0 | AD56: 0 | CG56: 0
A57: 57 | H57: b | I57: לא צמוד | J57: 0 | K57: 0 | L57: 0 | M57: 0 | N57: 0 | P57: 0 | R57: 0 | S57: 0 | T57: 0 | U57: 0 | V57: 0 | W57: 0 | X57: 0 | Y57: 0 | Z57: 0 | AA57: 0 | AB57: 0 | AC57: 0 | AD57: 0 | CG57: 0
A58: 58 | H58: c | I58: צמוד מט"ח | J58: 0 | K58: 0 | L58: 0 | M58: 0 | N58: 0 | P58: 0 | R58: 0 | S58: 0 | T58: 0 | U58: 0 | V58: 0 | W58: 0 | X58: 0 | Y58: 0 | Z58: 0 | AA58: 0 | AB58: 0 | AC58: 0 | AD58: 0 | CG58: 0
A59: 59 | F59: (2) | G59: לא סחיר | J59: 0 | K59: 0 | L59: 0 | M59: 0 | N59: 0 | O59: 0 | P59: 0 | Q59: 0 | R59: 0 | S59: 0 | T59: 0 | U59: 0 | V59: 0 | W59: 0 | X59: 0 | Y59: 0 | Z59: 0 | AA59: 0 | AB59: 0 | AC59: 0 | AD59: 0 | AE59: 0 | AF59: 0 | AG59: 0 | AH59: 0 | AI59: 0 | AJ59: 0 | AK59: 0 | AL59: 0 | AM59: 0 | AN59: 0 | AO59: 0 | AP59: 0 | AQ59: 0 | AR59: 0 | AS59: 0 | AT59: 0 | AU59: 0 | AV59: 0 | AW59: 0 | AX59: 0 | AY59: 0 | AZ59: 0 | BA59: 0 | BB59: 0 | BC59: 0 | BD59: 0 | BE59: 0 | BF59: 0 | BG59: 0 | BH59: 0 | BI59: 0 | BJ59: 0 | BK59: 0 | BL59: 0 | BM59: 0 | BN59: 0 | BO59: 0 | BP59: 0 | BQ59: 0 | BR59: 0 | BS59: 0 | BT59: 0 | BU59: 0 | BV59: 0 | BW59: 0 | BX59: 0 | CF59: 0 | CG59: 0
A60: 60 | G60: (א) | H60: =$H$47 -> דרוג AA- ומעלה | J60: 0 | K60: 0 | L60: 0 | M60: 0 | N60: 0 | O60: 0 | P60: 0 | Q60: 0 | R60: 0 | S60: 0 | T60: 0 | U60: 0 | V60: 0 | W60: 0 | X60: 0 | Y60: 0 | Z60: 0 | AA60: 0 | AB60: 0 | AC60: 0 | AD60: 0 | AE60: 0 | AF60: 0 | AG60: 0 | AH60: 0 | AI60: 0 | AJ60: 0 | AK60: 0 | AL60: 0 | AM60: 0 | AN60: 0 | AO60: 0 | AP60: 0 | AQ60: 0 | AR60: 0 | AS60: 0 | AT60: 0 | AU60: 0 | AV60: 0 | AW60: 0 | AX60: 0 | AY60: 0 | AZ60: 0 | BA60: 0 | BB60: 0 | BC60: 0 | BD60: 0 | BE60: 0 | BF60: 0 | BG60: 0 | BH60: 0 | BI60: 0 | BJ60: 0 | BK60: 0 | BL60: 0 | BM60: 0 | BN60: 0 | BO60: 0 | BP60: 0 | BQ60: 0 | BR60: 0 | BS60: 0 | BT60: 0 | BU60: 0 | BV60: 0 | BW60: 0 | BX60: 0 | CF60: 0 | CG60: 0
A61: 61 | H61: a | I61: צמוד מדד | J61: 0 | K61: 0 | L61: 0 | M61: 0 | N61: 0 | P61: 0 | R61: 0 | S61: 0 | T61: 0 | U61: 0 | V61: 0 | W61: 0 | X61: 0 | Y61: 0 | Z61: 0 | AA61: 0 | AB61: 0 | AC61: 0 | AD61: 0 | CG61: 0
A62: 62 | H62: b | I62: לא צמוד | J62: 0 | K62: 0 | L62: 0 | M62: 0 | N62: 0 | P62: 0 | R62: 0 | S62: 0 | T62: 0 | U62: 0 | V62: 0 | W62: 0 | X62: 0 | Y62: 0 | Z62: 0 | AA62: 0 | AB62: 0 | AC62: 0 | AD62: 0 | CG62: 0
A63: 63 | H63: c | I63: צמוד מט"ח | J63: 0 | K63: 0 | L63: 0 | M63: 0 | N63: 0 | P63: 0 | R63: 0 | S63: 0 | T63: 0 | U63: 0 | V63: 0 | W63: 0 | X63: 0 | Y63: 0 | Z63: 0 | AA63: 0 | AB63: 0 | AC63: 0 | AD63: 0 | CG63: 0
A64: 64 | G64: (ב) | H64: =$H$51 -> דרוג BBB- ועד A+ | J64: 0 | K64: 0 | L64: 0 | M64: 0 | N64: 0 | O64: 0 | P64: 0 | Q64: 0 | R64: 0 | S64: 0 | T64: 0 | U64: 0 | V64: 0 | W64: 0 | X64: 0 | Y64: 0 | Z64: 0 | AA64: 0 | AB64: 0 | AC64: 0 | AD64: 0 | AE64: 0 | AF64: 0 | AG64: 0 | AH64: 0 | AI64: 0 | AJ64: 0 | AK64: 0 | AL64: 0 | AM64: 0 | AN64: 0 | AO64: 0 | AP64: 0 | AQ64: 0 | AR64: 0 | AS64: 0 | AT64: 0 | AU64: 0 | AV64: 0 | AW64: 0 | AX64: 0 | AY64: 0 | AZ64: 0 | BA64: 0 | BB64: 0 | BC64: 0 | BD64: 0 | BE64: 0 | BF64: 0 | BG64: 0 | BH64: 0 | BI64: 0 | BJ64: 0 | BK64: 0 | BL64: 0 | BM64: 0 | BN64: 0 | BO64: 0 | BP64: 0 | BQ64: 0 | BR64: 0 | BS64: 0 | BT64: 0 | BU64: 0 | BV64: 0 | BW64: 0 | BX64: 0 | CF64: 0 | CG64: 0
A65: 65 | H65: a | I65: צמוד מדד | J65: 0 | K65: 0 | L65: 0 | M65: 0 | N65: 0 | P65: 0 | R65: 0 | S65: 0 | T65: 0 | U65: 0 | V65: 0 | W65: 0 | X65: 0 | Y65: 0 | Z65: 0 | AA65: 0 | AB65: 0 | AC65: 0 | AD65: 0 | CG65: 0
A66: 66 | H66: b | I66: לא צמוד | J66: 0 | K66: 0 | L66: 0 | M66: 0 | N66: 0 | P66: 0 | R66: 0 | S66: 0 | T66: 0 | U66: 0 | V66: 0 | W66: 0 | X66: 0 | Y66: 0 | Z66: 0 | AA66: 0 | AB66: 0 | AC66: 0 | AD66: 0 | CG66: 0
A67: 67 | H67: c | I67: צמוד מט"ח | J67: 0 | K67: 0 | L67: 0 | M67: 0 | N67: 0 | P67: 0 | R67: 0 | S67: 0 | T67: 0 | U67: 0 | V67: 0 | W67: 0 | X67: 0 | Y67: 0 | Z67: 0 | AA67: 0 | AB67: 0 | AC67: 0 | AD67: 0 | CG67: 0
A68: 68 | G68: (ג) | H68: בדרוג נמוך מ- BBB- או לא מדורג עם בטוחה מספקת | J68: 0 | K68: 0 | L68: 0 | M68: 0 | N68: 0 | O68: 0 | P68: 0 | Q68: 0 | R68: 0 | S68: 0 | T68: 0 | U68: 0 | V68: 0 | W68: 0 | X68: 0 | Y68: 0 | Z68: 0 | AA68: 0 | AB68: 0 | AC68: 0 | AD68: 0 | AE68: 0 | AF68: 0 | AG68: 0 | AH68: 0 | AI68: 0 | AJ68: 0 | AK68: 0 | AL68: 0 | AM68: 0 | AN68: 0 | AO68: 0 | AP68: 0 | AQ68: 0 | AR68: 0 | AS68: 0 | AT68: 0 | AU68: 0 | AV68: 0 | AW68: 0 | AX68: 0 | AY68: 0 | AZ68: 0 | BA68: 0 | BB68: 0 | BC68: 0 | BD68: 0 | BE68: 0 | BF68: 0 | BG68: 0 | BH68: 0 | BI68: 0 | BJ68: 0 | BK68: 0 | BL68: 0 | BM68: 0 | BN68: 0 | BO68: 0 | BP68: 0 | BQ68: 0 | BR68: 0 | BS68: 0 | BT68: 0 | BU68: 0 | BV68: 0 | BW68: 0 | BX68: 0 | CF68: 0 | CG68: 0
A69: 69 | H69: a | I69: צמוד מדד | J69: 0 | K69: 0 | L69: 0 | M69: 0 | N69: 0 | P69: 0 | R69: 0 | S69: 0 | T69: 0 | U69: 0 | V69: 0 | W69: 0 | X69: 0 | Y69: 0 | Z69: 0 | AA69: 0 | AB69: 0 | AC69: 0 | AD69: 0 | CG69: 0
A70: 70 | H70: b | I70: לא צמוד | J70: 0 | K70: 0 | L70: 0 | M70: 0 | N70: 0 | P70: 0 | R70: 0 | S70: 0 | T70: 0 | U70: 0 | V70: 0 | W70: 0 | X70: 0 | Y70: 0 | Z70: 0 | AA70: 0 | AB70: 0 | AC70: 0 | AD70: 0 | CG70: 0
A71: 71 | H71: c | I71: צמוד מט"ח | J71: 0 | K71: 0 | L71: 0 | M71: 0 | N71: 0 | P71: 0 | R71: 0 | S71: 0 | T71: 0 | U71: 0 | V71: 0 | W71: 0 | X71: 0 | Y71: 0 | Z71: 0 | AA71: 0 | AB71: 0 | AC71: 0 | AD71: 0 | CG71: 0
A72: 72 | G72: (ד) | H72: =$H$55 -> דרוג נמוך מ- BBB- או לא מדורג | J72: 0 | K72: 0 | L72: 0 | M72: 0 | N72: 0 | O72: 0 | P72: 0 | Q72: 0 | R72: 0 | S72: 0 | T72: 0 | U72: 0 | V72: 0 | W72: 0 | X72: 0 | Y72: 0 | Z72: 0 | AA72: 0 | AB72: 0 | AC72: 0 | AD72: 0 | AE72: 0 | AF72: 0 | AG72: 0 | AH72: 0 | AI72: 0 | AJ72: 0 | AK72: 0 | AL72: 0 | AM72: 0 | AN72: 0 | AO72: 0 | AP72: 0 | AQ72: 0 | AR72: 0 | AS72: 0 | AT72: 0 | AU72: 0 | AV72: 0 | AW72: 0 | AX72: 0 | AY72: 0 | AZ72: 0 | BA72: 0 | BB72: 0 | BC72: 0 | BD72: 0 | BE72: 0 | BF72: 0 | BG72: 0 | BH72: 0 | BI72: 0 | BJ72: 0 | BK72: 0 | BL72: 0 | BM72: 0 | BN72: 0 | BO72: 0 | BP72: 0 | BQ72: 0 | BR72: 0 | BS72: 0 | BT72: 0 | BU72: 0 | BV72: 0 | BW72: 0 | BX72: 0 | CF72: 0 | CG72: 0
A73: 73 | H73: a | I73: צמוד מדד | J73: 0 | K73: 0 | L73: 0 | M73: 0 | N73: 0 | P73: 0 | R73: 0 | S73: 0 | T73: 0 | U73: 0 | V73: 0 | W73: 0 | X73: 0 | Y73: 0 | Z73: 0 | AA73: 0 | AB73: 0 | AC73: 0 | AD73: 0 | CG73: 0
A74: 74 | H74: b | I74: לא צמוד | J74: 0 | K74: 0 | L74: 0 | M74: 0 | N74: 0 | P74: 0 | R74: 0 | S74: 0 | T74: 0 | U74: 0 | V74: 0 | W74: 0 | X74: 0 | Y74: 0 | Z74: 0 | AA74: 0 | AB74: 0 | AC74: 0 | AD74: 0 | CG74: 0
A75: =A74+1 -> 75 | H75: c | I75: צמוד מט"ח | J75: 0 | K75: 0 | L75: 0 | M75: 0 | N75: 0 | P75: 0 | R75: 0 | S75: 0 | T75: 0 | U75: 0 | V75: 0 | W75: 0 | X75: 0 | Y75: 0 | Z75: 0 | AA75: 0 | AB75: 0 | AC75: 0 | AD75: 0 | CG75: 0
A76: 76 | E76: ב) | F76: בחו"ל | J76: 0 | K76: 0 | L76: 0 | M76: 0 | N76: 0 | O76: 0 | P76: 0 | Q76: 0 | R76: 0 | S76: 0 | T76: 0 | U76: 0 | V76: 0 | W76: 0 | X76: 0 | Y76: 0 | Z76: 0 | AA76: 0 | AB76: 0 | AC76: 0 | AD76: 0 | AE76: 0 | AF76: 0 | AG76: 0 | AH76: 0 | AI76: 0 | AJ76: 0 | AK76: 0 | AL76: 0 | AM76: 0 | AN76: 0 | AO76: 0 | AP76: 0 | AQ76: 0 | AR76: 0 | AS76: 0 | AT76: 0 | AU76: 0 | AV76: 0 | AW76: 0 | AX76: 0 | AY76: 0 | AZ76: 0 | BA76: 0 | BB76: 0 | BC76: 0 | BD76: 0 | BE76: 0 | BF76: 0 | BG76: 0 | BH76: 0 | BI76: 0 | BJ76: 0 | BK76: 0 | BL76: 0 | BM76: 0 | BN76: 0 | BO76: 0 | BP76: 0 | BQ76: 0 | BR76: 0 | BS76: 0 | BT76: 0 | BU76: 0 | BV76: 0 | BW76: 0 | BX76: 0 | CF76: 0 | CG76: 0
A77: 77 | F77: (1) | G77: סחיר - חברות ישראליות | J77: 0 | K77: 0 | L77: 0 | M77: 0 | N77: 0 | O77: 0 | P77: 0 | Q77: 0 | R77: 0 | S77: 0 | T77: 0 | U77: 0 | V77: 0 | W77: 0 | X77: 0 | Y77: 0 | Z77: 0 | AA77: 0 | AB77: 0 | AC77: 0 | AD77: 0 | AE77: 0 | AF77: 0 | AG77: 0 | AH77: 0 | AI77: 0 | AJ77: 0 | AK77: 0 | AL77: 0 | AM77: 0 | AN77: 0 | AO77: 0 | AP77: 0 | AQ77: 0 | AR77: 0 | AS77: 0 | AT77: 0 | AU77: 0 | AV77: 0 | AW77: 0 | AX77: 0 | AY77: 0 | AZ77: 0 | BA77: 0 | BB77: 0 | BC77: 0 | BD77: 0 | BE77: 0 | BF77: 0 | BG77: 0 | BH77: 0 | BI77: 0 | BJ77: 0 | BK77: 0 | BL77: 0 | BM77: 0 | BN77: 0 | BO77: 0 | BP77: 0 | BQ77: 0 | BR77: 0 | BS77: 0 | BT77: 0 | BU77: 0 | BV77: 0 | BW77: 0 | BX77: 0 | CF77: 0 | CG77: 0
A78: 78 | G78: (א) | H78: דרוג A- ומעלה | J78: 0 | K78: 0 | L78: 0 | M78: 0 | N78: 0 | P78: 0 | R78: 0 | S78: 0 | T78: 0 | U78: 0 | V78: 0 | W78: 0 | X78: 0 | Y78: 0 | Z78: 0 | AA78: 0 | AB78: 0 | AC78: 0 | AD78: 0 | CG78: 0
A79: 79 | G79: (ב) | H79: דרוג BBB- ועד BBB+ | J79: 0 | K79: 0 | L79: 0 | M79: 0 | N79: 0 | P79: 0 | R79: 0 | S79: 0 | T79: 0 | U79: 0 | V79: 0 | W79: 0 | X79: 0 | Y79: 0 | Z79: 0 | AA79: 0 | AB79: 0 | AC79: 0 | AD79: 0 | CG79: 0
A80: 80 | G80: (ג) | H80: דרוג נמוך מ- BBB- או לא מדורג | J80: 0 | K80: 0 | L80: 0 | M80: 0 | N80: 0 | P80: 0 | R80: 0 | S80: 0 | T80: 0 | U80: 0 | V80: 0 | W80: 0 | X80: 0 | Y80: 0 | Z80: 0 | AA80: 0 | AB80: 0 | AC80: 0 | AD80: 0 | CG80: 0
A81: 81 | F81: (2) | G81: לא סחיר - חברות ישראליות | J81: 0 | K81: 0 | L81: 0 | M81: 0 | N81: 0 | O81: 0 | P81: 0 | Q81: 0 | R81: 0 | S81: 0 | T81: 0 | U81: 0 | V81: 0 | W81: 0 | X81: 0 | Y81: 0 | Z81: 0 | AA81: 0 | AB81: 0 | AC81: 0 | AD81: 0 | AE81: 0 | AF81: 0 | AG81: 0 | AH81: 0 | AI81: 0 | AJ81: 0 | AK81: 0 | AL81: 0 | AM81: 0 | AN81: 0 | AO81: 0 | AP81: 0 | AQ81: 0 | AR81: 0 | AS81: 0 | AT81: 0 | AU81: 0 | AV81: 0 | AW81: 0 | AX81: 0 | AY81: 0 | AZ81: 0 | BA81: 0 | BB81: 0 | BC81: 0 | BD81: 0 | BE81: 0 | BF81: 0 | BG81: 0 | BH81: 0 | BI81: 0 | BJ81: 0 | BK81: 0 | BL81: 0 | BM81: 0 | BN81: 0 | BO81: 0 | BP81: 0 | BQ81: 0 | BR81: 0 | BS81: 0 | BT81: 0 | BU81: 0 | BV81: 0 | BW81: 0 | BX81: 0 | CF81: 0 | CG81: 0
A82: 82 | G82: (א) | H82: =$H$78 -> דרוג A- ומעלה | J82: 0 | K82: 0 | L82: 0 | M82: 0 | N82: 0 | P82: 0 | R82: 0 | S82: 0 | T82: 0 | U82: 0 | V82: 0 | W82: 0 | X82: 0 | Y82: 0 | Z82: 0 | AA82: 0 | AB82: 0 | AC82: 0 | AD82: 0 | CG82: 0
A83: 83 | G83: (ב) | H83: =$H$79 -> דרוג BBB- ועד BBB+ | J83: 0 | K83: 0 | L83: 0 | M83: 0 | N83: 0 | P83: 0 | R83: 0 | S83: 0 | T83: 0 | U83: 0 | V83: 0 | W83: 0 | X83: 0 | Y83: 0 | Z83: 0 | AA83: 0 | AB83: 0 | AC83: 0 | AD83: 0 | CG83: 0
A84: 84 | G84: (ג) | H84: =$H$68 -> בדרוג נמוך מ- BBB- או לא מדורג עם בטוחה מספקת | J84: 0 | K84: 0 | L84: 0 | M84: 0 | N84: 0 | P84: 0 | R84: 0 | S84: 0 | T84: 0 | U84: 0 | V84: 0 | W84: 0 | X84: 0 | Y84: 0 | Z84: 0 | AA84: 0 | AB84: 0 | AC84: 0 | AD84: 0 | CG84: 0
A85: 85 | G85: (ד) | H85: =H80 -> דרוג נמוך מ- BBB- או לא מדורג | J85: 0 | K85: 0 | L85: 0 | M85: 0 | N85: 0 | P85: 0 | R85: 0 | S85: 0 | T85: 0 | U85: 0 | V85: 0 | W85: 0 | X85: 0 | Y85: 0 | Z85: 0 | AA85: 0 | AB85: 0 | AC85: 0 | AD85: 0 | CG85: 0
A86: 86 | F86: (3) | G86: סחיר - חברות זרות | J86: 0 | K86: 0 | L86: 0 | M86: 0 | N86: 0 | O86: 0 | P86: 0 | Q86: 0 | R86: 0 | S86: 0 | T86: 0 | U86: 0 | V86: 0 | W86: 0 | X86: 0 | Y86: 0 | Z86: 0 | AA86: 0 | AB86: 0 | AC86: 0 | AD86: 0 | AE86: 0 | AF86: 0 | AG86: 0 | AH86: 0 | AI86: 0 | AJ86: 0 | AK86: 0 | AL86: 0 | AM86: 0 | AN86: 0 | AO86: 0 | AP86: 0 | AQ86: 0 | AR86: 0 | AS86: 0 | AT86: 0 | AU86: 0 | AV86: 0 | AW86: 0 | AX86: 0 | AY86: 0 | AZ86: 0 | BA86: 0 | BB86: 0 | BC86: 0 | BD86: 0 | BE86: 0 | BF86: 0 | BG86: 0 | BH86: 0 | BI86: 0 | BJ86: 0 | BK86: 0 | BL86: 0 | BM86: 0 | BN86: 0 | BO86: 0 | BP86: 0 | BQ86: 0 | BR86: 0 | BS86: 0 | BT86: 0 | BU86: 0 | BV86: 0 | BW86: 0 | BX86: 0 | CF86: 0 | CG86: 0
A87: 87 | G87: (א) | H87: =$H$78 -> דרוג A- ומעלה | J87: 0 | K87: 0 | L87: 0 | M87: 0 | N87: 0 | P87: 0 | R87: 0 | S87: 0 | T87: 0 | U87: 0 | V87: 0 | W87: 0 | X87: 0 | Y87: 0 | Z87: 0 | AA87: 0 | AB87: 0 | AC87: 0 | AD87: 0 | CG87: 0
A88: 88 | G88: (ב) | H88: =$H$79 -> דרוג BBB- ועד BBB+ | J88: 0 | K88: 0 | L88: 0 | M88: 0 | N88: 0 | P88: 0 | R88: 0 | S88: 0 | T88: 0 | U88: 0 | V88: 0 | W88: 0 | X88: 0 | Y88: 0 | Z88: 0 | AA88: 0 | AB88: 0 | AC88: 0 | AD88: 0 | CG88: 0
A89: 89 | G89: (ג) | H89: =$H$80 -> דרוג נמוך מ- BBB- או לא מדורג | J89: 0 | K89: 0 | L89: 0 | M89: 0 | N89: 0 | P89: 0 | R89: 0 | S89: 0 | T89: 0 | U89: 0 | V89: 0 | W89: 0 | X89: 0 | Y89: 0 | Z89: 0 | AA89: 0 | AB89: 0 | AC89: 0 | AD89: 0 | CG89: 0
A90: 90 | F90: (4) | G90: לא סחיר - חברות זרות | J90: 0 | K90: 0 | L90: 0 | M90: 0 | N90: 0 | O90: 0 | P90: 0 | Q90: 0 | R90: 0 | S90: 0 | T90: 0 | U90: 0 | V90: 0 | W90: 0 | X90: 0 | Y90: 0 | Z90: 0 | AA90: 0 | AB90: 0 | AC90: 0 | AD90: 0 | AE90: 0 | AF90: 0 | AG90: 0 | AH90: 0 | AI90: 0 | AJ90: 0 | AK90: 0 | AL90: 0 | AM90: 0 | AN90: 0 | AO90: 0 | AP90: 0 | AQ90: 0 | AR90: 0 | AS90: 0 | AT90: 0 | AU90: 0 | AV90: 0 | AW90: 0 | AX90: 0 | AY90: 0 | AZ90: 0 | BA90: 0 | BB90: 0 | BC90: 0 | BD90: 0 | BE90: 0 | BF90: 0 | BG90: 0 | BH90: 0 | BI90: 0 | BJ90: 0 | BK90: 0 | BL90: 0 | BM90: 0 | BN90: 0 | BO90: 0 | BP90: 0 | BQ90: 0 | BR90: 0 | BS90: 0 | BT90: 0 | BU90: 0 | BV90: 0 | BW90: 0 | BX90: 0 | CF90: 0 | CG90: 0
A91: 91 | G91: (א) | H91: =$H$78 -> דרוג A- ומעלה | J91: 0 | K91: 0 | L91: 0 | M91: 0 | N91: 0 | P91: 0 | R91: 0 | S91: 0 | T91: 0 | U91: 0 | V91: 0 | W91: 0 | X91: 0 | Y91: 0 | Z91: 0 | AA91: 0 | AB91: 0 | AC91: 0 | AD91: 0 | CG91: 0
A92: 92 | G92: (ב) | H92: =$H$79 -> דרוג BBB- ועד BBB+ | J92: 0 | K92: 0 | L92: 0 | M92: 0 | N92: 0 | P92: 0 | R92: 0 | S92: 0 | T92: 0 | U92: 0 | V92: 0 | W92: 0 | X92: 0 | Y92: 0 | Z92: 0 | AA92: 0 | AB92: 0 | AC92: 0 | AD92: 0 | CG92: 0
A93: 93 | G93: (ג) | H93: =$H$68 -> בדרוג נמוך מ- BBB- או לא מדורג עם בטוחה מספקת | J93: 0 | K93: 0 | L93: 0 | M93: 0 | N93: 0 | P93: 0 | R93: 0 | S93: 0 | T93: 0 | U93: 0 | V93: 0 | W93: 0 | X93: 0 | Y93: 0 | Z93: 0 | AA93: 0 | AB93: 0 | AC93: 0 | AD93: 0 | CG93: 0
A94: 94 | G94: (ד) | H94: =H89 -> דרוג נמוך מ- BBB- או לא מדורג | J94: 0 | K94: 0 | L94: 0 | M94: 0 | N94: 0 | P94: 0 | R94: 0 | S94: 0 | T94: 0 | U94: 0 | V94: 0 | W94: 0 | X94: 0 | Y94: 0 | Z94: 0 | AA94: 0 | AB94: 0 | AC94: 0 | AD94: 0 | CG94: 0
A95: 95 | W95: 0 | X95: 0 | Y95: 0 | Z95: 0 | AA95: 0 | AB95: 0 | AC95: 0 | AD95: 0 | CG95: 0
A96: 96 | D96: (3 | E96: אג"ח קונצרני: | J96: 8609371.12 | K96: 196.8985565 | L96: 70014.31365 | M96: 2084630.547 | N96: 73456.74129 | O96: 1752552.77 | P96: 350106.8198 | Q96: 1025554.78 | R96: 8.563695404 | S96: 0 | T96: 0 | U96: 13885.71019 | V96: 0.796304596 | W96: 123587.4754 | X96: 229381.7178 | Y96: 553427.826 | Z96: 511858.6885 | AA96: 1338.604614 | AB96: 19479.71217 | AC96: 42430.91399 | AD96: 336642.3015 | AE96: 0 | AF96: 0 | AG96: 0 | AH96: 868527.14 | AI96: 0 | AJ96: 0 | AK96: 0 | AL96: 0 | AM96: 120421.42 | AN96: 0 | AO96: 14835.28 | AP96: 0 | AQ96: 0 | AR96: 0 | AS96: 0 | AT96: 0 | AU96: 0 | AV96: 0 | AW96: 0 | AX96: 0 | AY96: 0 | AZ96: 0 | BA96: 0 | BB96: 0 | BC96: 0 | BD96: 0 | BE96: 0 | BF96: 0 | BG96: 0 | BH96: 0 | BI96: 0 | BJ96: 0 | BK96: 0 | BL96: 0 | BM96: 0 | BN96: 0 | BO96: 0 | BP96: 0 | BQ96: 0 | BR96: 0 | BS96: 0 | BT96: 0 | BU96: 0 | BV96: 0 | BW96: 0 | BX96: 0 | CF96: 0 | CG96: 417032.1
A97: 97 | E97: א) | F97: בישראל | J97: 5967931.25 | K97: 145.586129 | L97: 51768.34751 | M97: 1541368.799 | N97: 54313.66691 | O97: 1274550.3 | P97: 280752.1306 | Q97: 859176.52 | R97: 7.346845523 | S97: 0 | T97: 0 | U97: 11135.00937 | V97: 0.6831544771 | W97: 97538.40887 | X97: 168502.4306 | Y97: 453791.938 | Z97: 417177.5073 | AA97: 1056.461132 | AB97: 14309.67942 | AC97: 34791.90201 | AD97: 274371.8127 | AE97: 0 | AF97: 0 | AG97: 0 | AH97: 259.62 | AI97: 0 | AJ97: 0 | AK97: 0 | AL97: 0 | AM97: 119906.13 | AN97: 0 | AO97: 12170.25 | AP97: 0 | AQ97: 0 | AR97: 0 | AS97: 0 | AT97: 0 | AU97: 0 | AV97: 0 | AW97: 0 | AX97: 0 | AY97: 0 | AZ97: 0 | BA97: 0 | BB97: 0 | BC97: 0 | BD97: 0 | BE97: 0 | BF97: 0 | BG97: 0 | BH97: 0 | BI97: 0 | BJ97: 0 | BK97: 0 | BL97: 0 | BM97: 0 | BN97: 0 | BO97: 0 | BP97: 0 | BQ97: 0 | BR97: 0 | BS97: 0 | BT97: 0 | BU97: 0 | BV97: 0 | BW97: 0 | BX97: 0 | CF97: 0 | CG97: 300836.72
A98: 98 | F98: (1) | G98: סחיר | J98: 5572943.61 | K98: 125.6290777 | L98: 44671.90519 | M98: 1330076.855 | N98: 46868.31037 | O98: 1193688.09 | P98: 270248.9606 | Q98: 859135.31 | R98: 7.346845523 | S98: 0 | T98: 0 | U98: 10718.43944 | V98: 0.6831544771 | W98: 91943.47885 | X98: 160525.3829 | Y98: 442961.7414 | Z98: 396113.2348 | AA98: 995.8611471 | AB98: 13632.24709 | AC98: 33961.55861 | AD98: 260518.1352 | AE98: 0 | AF98: 0 | AG98: 0 | AH98: 259.62 | AI98: 0 | AJ98: 0 | AK98: 0 | AL98: 0 | AM98: 119906.13 | AN98: 0 | AO98: 12170.25 | AP98: 0 | AQ98: 0 | AR98: 0 | AS98: 0 | AT98: 0 | AU98: 0 | AV98: 0 | AW98: 0 | AX98: 0 | AY98: 0 | AZ98: 0 | BA98: 0 | BB98: 0 | BC98: 0 | BD98: 0 | BE98: 0 | BF98: 0 | BG98: 0 | BH98: 0 | BI98: 0 | BJ98: 0 | BK98: 0 | BL98: 0 | BM98: 0 | BN98: 0 | BO98: 0 | BP98: 0 | BQ98: 0 | BR98: 0 | BS98: 0 | BT98: 0 | BU98: 0 | BV98: 0 | BW98: 0 | BX98: 0 | CF98: 0 | CG98: 284414.44
A99: 99 | G99: (א) | H99: =$H$47 -> דרוג AA- ומעלה | J99: 4079965.47 | K99: 91.55296417 | L99: 32554.92607 | M99: 969301.7011 | N99: 34155.56987 | O99: 877373.43 | P99: 184863.8592 | Q99: 646696.19 | R99: 1.68346149 | S99: 0 | T99: 0 | U99: 7331.950786 | V99: 0.1565385103 | W99: 64457.85205 | X99: 118489.4844 | Y99: 321295.5508 | Z99: 285380.6966 | AA99: 698.1579475 | AB99: 10062.44557 | AC99: 24633.49915 | AD99: 187690.8934 | AE99: 0 | AF99: 0 | AG99: 0 | AH99: 259.62 | AI99: 0 | AJ99: 0 | AK99: 0 | AL99: 0 | AM99: 94394.56 | AN99: 0 | AO99: 9913.19 | AP99: 0 | AQ99: 0 | AR99: 0 | AS99: 0 | AT99: 0 | AU99: 0 | AV99: 0 | AW99: 0 | AX99: 0 | AY99: 0 | AZ99: 0 | BA99: 0 | BB99: 0 | BC99: 0 | BD99: 0 | BE99: 0 | BF99: 0 | BG99: 0 | BH99: 0 | BI99: 0 | BJ99: 0 | BK99: 0 | BL99: 0 | BM99: 0 | BN99: 0 | BO99: 0 | BP99: 0 | BQ99: 0 | BR99: 0 | BS99: 0 | BT99: 0 | BU99: 0 | BV99: 0 | BW99: 0 | BX99: 0 | CF99: 0 | CG99: 210318.5
A100: 100 | H100: a | I100: צמוד מדד | J100: 3579904.78 | K100: 81.83776566 | L100: 29100.34027 | M100: 866443.6612 | N100: 30531.13079 | O100: 777543.67 | P100: 149532.5757 | Q100: 568155 | R100: 0.7959845087 | S100: 0 | T100: 0 | U100: 5930.664278 | V100: 0.07401549129 | W100: 57166.04135 | X100: 103653.8282 | Y100: 275417.7583 | Z100: 244770.865 | AA100: 619.1786543 | AB100: 8802.561766 | AC100: 21116.08174 | AD100: 160982.375 | AM100: 82485.33 | AO100: 9182.67 | CG100: 188388.34
A101: 101 | H101: b | I101: לא צמוד | J101: 468863.99 | K101: 9.008656244 | L101: 3203.349456 | M101: 95377.6418 | N101: 3360.850089 | O101: 93116.87 | P101: 33995.96407 | Q101: 73636.05 | R101: 0.8783277337 | S101: 0 | T101: 0 | U101: 1348.325933 | V101: 0.08167226625 | W101: 6798.2664 | X101: 13940.76293 | Y101: 43499.98722 | Z101: 38496.61479 | AA101: 73.63360033 | AB101: 1183.887068 | AC101: 3335.112782 | AD101: 25318.68521 | AM101: 11197.1 | AO101: 651.24 | CG101: 20319.68
A102: 102 | H102: c | I102: צמוד מט"ח | J102: 31196.7 | K102: 0.7065422674 | L102: 251.2363361 | M102: 7480.398127 | N102: 263.5889946 | O102: 6712.89 | P102: 1335.319425 | Q102: 4905.14 | R102: 0.009149247227 | S102: 0 | T102: 0 | U102: 52.96057514 | V102: 0.0008507527735 | W102: 493.5443071 | X102: 894.8932586 | Y102: 2377.80537 | Z102: 2113.216837 | AA102: 5.345692875 | AB102: 75.99674143 | AC102: 182.3046301 | AD102: 1389.833163 | AH102: 259.62 | AM102: 712.13 | AO102: 79.28 | CG102: 1610.48
A103: 103 | H103: d | I103: אחר | J103: 0 | K103: 0 | L103: 0 | M103: 0 | N103: 0 | P103: 0 | R103: 0 | S103: 0 | T103: 0 | U103: 0 | V103: 0 | W103: 0 | X103: 0 | Y103: 0 | Z103: 0 | AA103: 0 | AB103: 0 | AC103: 0 | AD103: 0 | CG103: 0
A104: 104 | G104: (ב) | H104: =$H$51 -> דרוג BBB- ועד A+ | J104: 1462677.9 | K104: 33.29651556 | L104: 11839.76524 | M104: 352521.2915 | N104: 12421.8967 | O104: 309825.89 | P104: 83469.89118 | Q104: 209093.31 | R104: 5.361458875 | S104: 0 | T104: 0 | U104: 3310.528823 | V104: 0.4985411253 | W104: 26737.37133 | X104: 41240.0722 | Y104: 119318.125 | Z104: 108455.9731 | AA104: 289.598671 | AB104: 3502.217804 | AC104: 9148.034961 | AD104: 71329.97687 | AE104: 0 | AF104: 0 | AG104: 0 | AH104: 0 | AI104: 0 | AJ104: 0 | AK104: 0 | AL104: 0 | AM104: 25383.86 | AN104: 0 | AO104: 2245 | AP104: 0 | AQ104: 0 | AR104: 0 | AS104: 0 | AT104: 0 | AU104: 0 | AV104: 0 | AW104: 0 | AX104: 0 | AY104: 0 | AZ104: 0 | BA104: 0 | BB104: 0 | BC104: 0 | BD104: 0 | BE104: 0 | BF104: 0 | BG104: 0 | BH104: 0 | BI104: 0 | BJ104: 0 | BK104: 0 | BL104: 0 | BM104: 0 | BN104: 0 | BO104: 0 | BP104: 0 | BQ104: 0 | BR104: 0 | BS104: 0 | BT104: 0 | BU104: 0 | BV104: 0 | BW104: 0 | BX104: 0 | CF104: 0 | CG104: 72505.94
A105: 105 | H105: a | I105: צמוד מדד | J105: 758089.88 | K105: 18.07783124 | L105: 6428.218517 | M105: 191396.0158 | N105: 6744.277848 | O105: 163922.71 | P105: 37219.15784 | Q105: 107870.36 | R105: 2.67158019 | S105: 0 | T105: 0 | U105: 1476.162159 | V105: 0.2484198099 | W105: 14365.97875 | X105: 21262.03115 | Y105: 58487.55143 | Z105: 53598.82942 | AA105: 155.6012483 | AB105: 1805.628848 | AC105: 4484.198567 | AD105: 35251.20058 | AM105: 12605.46 | AO105: 1384.91 | CG105: 39610.59
A106: 106 | H106: b | I106: לא צמוד | J106: 632621.03 | K106: 13.57264556 | L106: 4826.238853 | M106: 143698.1156 | N106: 5063.532874 | O106: 130264.11 | P106: 43243.11938 | Q106: 89795.4 | R106: 2.67158019 | S106: 0 | T106: 0 | U106: 1715.080624 | V106: 0.2484198099 | W106: 11221.58639 | X106: 17893.21046 | Y106: 55290.98025 | Z106: 49933.96168 | AA106: 121.5436053 | AB106: 1519.539538 | AC106: 4239.11975 | AD106: 32840.86832 | AM106: 11119.34 | AO106: 675.39 | CG106: 29143.4
A107: 107 | H107: c | I107: צמוד מט"ח | J107: 71966.99 | K107: 1.646038755 | L107: 585.3078649 | M107: 17427.16012 | N107: 614.08598 | O107: 15639.07 | P107: 3007.613961 | Q107: 11427.55 | R107: 0.01829849445 | S107: 0 | T107: 0 | U107: 119.2860391 | V107: 0.001701505547 | W107: 1149.806183 | X107: 2084.830582 | Y107: 5539.593356 | Z107: 4923.182027 | AA107: 12.45381748 | AB107: 177.0494181 | AC107: 424.7166444 | AD107: 3237.907973 | AM107: 1659.06 | AO107: 184.7 | CG107: 3751.95
A108: 108 | H108: d | I108: אחר | J108: 0 | K108: 0 | L108: 0 | M108: 0 | N108: 0 | P108: 0 | R108: 0 | S108: 0 | T108: 0 | U108: 0 | V108: 0 | W108: 0 | X108: 0 | Y108: 0 | Z108: 0 | AA108: 0 | AB108: 0 | AC108: 0 | AD108: 0 | CG108: 0
A109: 109 | G109: (ג) | H109: =$H$55 -> דרוג נמוך מ- BBB- או לא מדורג | J109: 30300.24 | K109: 0.7795979283 | L109: 277.2138854 | M109: 8253.862722 | N109: 290.8437947 | O109: 6488.77 | P109: 1915.210173 | Q109: 3345.81 | R109: 0.3019251585 | S109: 0 | T109: 0 | U109: 75.95982684 | V109: 0.02807484153 | W109: 748.2554714 | X109: 795.8262917 | Y109: 2348.065504 | Z109: 2276.565021 | AA109: 8.10452858 | AB109: 67.58370826 | AC109: 180.024496 | AD109: 1497.264979 | AE109: 0 | AF109: 0 | AG109: 0 | AH109: 0 | AI109: 0 | AJ109: 0 | AK109: 0 | AL109: 0 | AM109: 127.71 | AN109: 0 | AO109: 12.06 | AP109: 0 | AQ109: 0 | AR109: 0 | AS109: 0 | AT109: 0 | AU109: 0 | AV109: 0 | AW109: 0 | AX109: 0 | AY109: 0 | AZ109: 0 | BA109: 0 | BB109: 0 | BC109: 0 | BD109: 0 | BE109: 0 | BF109: 0 | BG109: 0 | BH109: 0 | BI109: 0 | BJ109: 0 | BK109: 0 | BL109: 0 | BM109: 0 | BN109: 0 | BO109: 0 | BP109: 0 | BQ109: 0 | BR109: 0 | BS109: 0 | BT109: 0 | BU109: 0 | BV109: 0 | BW109: 0 | BX109: 0 | CF109: 0 | CG109: 1590
A110: 110 | H110: a | I110: צמוד מדד | J110: 30300.24 | K110: 0.7795979283 | L110: 277.2138854 | M110: 8253.862722 | N110: 290.8437947 | O110: 6488.77 | P110: 1915.210173 | Q110: 3345.81 | R110: 0.3019251585 | S110: 0 | T110: 0 | U110: 75.95982684 | V110: 0.02807484153 | W110: 748.2554714 | X110: 795.8262917 | Y110: 2348.065504 | Z110: 2276.565021 | AA110: 8.10452858 | AB110: 67.58370826 | AC110: 180.024496 | AD110: 1497.264979 | AM110: 127.71 | AO110: 12.06 | CG110: 1590
A111: 111 | H111: b | I111: לא צמוד | J111: 0 | K111: 0 | L111: 0 | M111: 0 | N111: 0 | P111: 0 | R111: 0 | S111: 0 | T111: 0 | U111: 0 | V111: 0 | W111: 0 | X111: 0 | Y111: 0 | Z111: 0 | AA111: 0 | AB111: 0 | AC111: 0 | AD111: 0 | CG111: 0
A112: 112 | H112: c | I112: צמוד מט"ח | J112: 0 | K112: 0 | L112: 0 | M112: 0 | N112: 0 | P112: 0 | R112: 0 | S112: 0 | T112: 0 | U112: 0 | V112: 0 | W112: 0 | X112: 0 | Y112: 0 | Z112: 0 | AA112: 0 | AB112: 0 | AC112: 0 | AD112: 0 | CG112: 0
A113: 113 | H113: d | I113: אחר | J113: 0 | K113: 0 | L113: 0 | M113: 0 | N113: 0 | P113: 0 | R113: 0 | S113: 0 | T113: 0 | U113: 0 | V113: 0 | W113: 0 | X113: 0 | Y113: 0 | Z113: 0 | AA113: 0 | AB113: 0 | AC113: 0 | AD113: 0 | CG113: 0
A114: 114 | F114: (2) | G114: לא סחיר | J114: 394987.64 | K114: 19.95705131 | L114: 7096.442326 | M114: 211291.9441 | N114: 7445.35654 | O114: 80862.21 | P114: 10503.17006 | Q114: 41.21 | R114: 0 | S114: 0 | T114: 0 | U114: 416.569936 | V114: 0 | W114: 5594.930015 | X114: 7977.047666 | Y114: 10830.1966 | Z114: 21064.27252 | AA114: 60.59998482 | AB114: 677.432334 | AC114: 830.3433962 | AD114: 13853.67748 | AE114: 0 | AF114: 0 | AG114: 0 | AH114: 0 | AI114: 0 | AJ114: 0 | AK114: 0 | AL114: 0 | AM114: 0 | AN114: 0 | AO114: 0 | AP114: 0 | AQ114: 0 | AR114: 0 | AS114: 0 | AT114: 0 | AU114: 0 | AV114: 0 | AW114: 0 | AX114: 0 | AY114: 0 | AZ114: 0 | BA114: 0 | BB114: 0 | BC114: 0 | BD114: 0 | BE114: 0 | BF114: 0 | BG114: 0 | BH114: 0 | BI114: 0 | BJ114: 0 | BK114: 0 | BL114: 0 | BM114: 0 | BN114: 0 | BO114: 0 | BP114: 0 | BQ114: 0 | BR114: 0 | BS114: 0 | BT114: 0 | BU114: 0 | BV114: 0 | BW114: 0 | BX114: 0 | CF114: 0 | CG114: 16422.28
A115: 115 | G115: (א) | H115: =$H$47 -> דרוג AA- ומעלה | J115: 366640.02 | K115: 18.85877052 | L115: 6705.909366 | M115: 199664.0798 | N115: 7035.622058 | O115: 74912.27 | P115: 9648.988077 | Q115: 36.86 | R115: 0 | S115: 0 | T115: 0 | U115: 382.6919227 | V115: 0 | W115: 4894.011823 | X115: 6961.924642 | Y115: 9212.503939 | Z115: 18349.21674 | AA115: 53.00817729 | AB115: 591.2253577 | AC115: 706.3160613 | AD115: 12068.02326 | AE115: 0 | AF115: 0 | AG115: 0 | AH115: 0 | AI115: 0 | AJ115: 0 | AK115: 0 | AL115: 0 | AM115: 0 | AN115: 0 | AO115: 0 | AP115: 0 | AQ115: 0 | AR115: 0 | AS115: 0 | AT115: 0 | AU115: 0 | AV115: 0 | AW115: 0 | AX115: 0 | AY115: 0 | AZ115: 0 | BA115: 0 | BB115: 0 | BC115: 0 | BD115: 0 | BE115: 0 | BF115: 0 | BG115: 0 | BH115: 0 | BI115: 0 | BJ115: 0 | BK115: 0 | BL115: 0 | BM115: 0 | BN115: 0 | BO115: 0 | BP115: 0 | BQ115: 0 | BR115: 0 | BS115: 0 | BT115: 0 | BU115: 0 | BV115: 0 | BW115: 0 | BX115: 0 | CF115: 0 | CG115: 15398.51
A116: 116 | H116: a | I116: צמוד מדד | J116: 343828.61 | K116: 18.38790581 | L116: 6538.476604 | M116: 194678.8784 | N116: 6859.957047 | O116: 69983.73 | P116: 8963.005091 | R116: 0 | S116: 0 | T116: 0 | U116: 355.4849093 | V116: 0 | W116: 3952.044489 | X116: 5765.369336 | Y116: 6892.915146 | Z116: 15067.10545 | AA116: 42.8055106 | AB116: 489.6106641 | AC116: 528.4748542 | AD116: 9909.424553 | CG116: 13782.94
A117: 117 | H117: b | I117: לא צמוד | J117: 17056.65 | K117: 0.283933335 | L117: 100.9626375 | M117: 3006.096713 | N117: 105.9267163 | O117: 2986.76 | P117: 516.6586201 | Q117: 7.01 | R117: 0 | S117: 0 | T117: 0 | U117: 20.49137994 | V117: 0 | W117: 750.6891121 | X117: 1083.220042 | Y117: 1946.586603 | Z117: 2931.0979 | AA117: 8.130887907 | AB117: 91.98995817 | AC117: 149.243397 | AD117: 1927.7421 | CG117: 1423.76
A118: 118 | H118: c | I118: צמוד מט"ח | J118: 5754.76 | K118: 0.1869313722 | L118: 66.47012531 | M118: 1979.104649 | N118: 69.73829413 | O118: 1941.78 | P118: 169.3243665 | Q118: 29.85 | R118: 0 | S118: 0 | T118: 0 | U118: 6.71563348 | V118: 0 | W118: 191.2782212 | X118: 113.3352646 | Y118: 373.00219 | Z118: 351.0133972 | AA118: 2.071778784 | AB118: 9.624735373 | AC118: 28.59781004 | AD118: 230.8566028 | CG118: 191.81
A119: 119 | H119: d | I119: אחר | J119: 0 | K119: 0 | L119: 0 | M119: 0 | N119: 0 | P119: 0 | R119: 0 | S119: 0 | T119: 0 | U119: 0 | V119: 0 | W119: 0 | X119: 0 | Y119: 0 | Z119: 0 | AA119: 0 | AB119: 0 | AC119: 0 | AD119: 0 | CG119: 0
A120: 120 | G120: (ב) | H120: =$H$51 -> דרוג BBB- ועד A+ | J120: 28321.45 | K120: 1.096981861 | L120: 390.0710776 | M120: 11614.11205 | N120: 409.2498911 | O120: 5944.17 | P120: 853.4317424 | Q120: 4.35 | R120: 0 | S120: 0 | T120: 0 | U120: 33.84825764 | V120: 0 | W120: 700.5818356 | X120: 1014.643727 | Y120: 1617.116815 | Z120: 2713.794987 | AA120: 7.588164372 | AB120: 86.16627314 | AC120: 123.9831849 | AD120: 1784.825013 | AE120: 0 | AF120: 0 | AG120: 0 | AH120: 0 | AI120: 0 | AJ120: 0 | AK120: 0 | AL120: 0 | AM120: 0 | AN120: 0 | AO120: 0 | AP120: 0 | AQ120: 0 | AR120: 0 | AS120: 0 | AT120: 0 | AU120: 0 | AV120: 0 | AW120: 0 | AX120: 0 | AY120: 0 | AZ120: 0 | BA120: 0 | BB120: 0 | BC120: 0 | BD120: 0 | BE120: 0 | BF120: 0 | BG120: 0 | BH120: 0 | BI120: 0 | BJ120: 0 | BK120: 0 | BL120: 0 | BM120: 0 | BN120: 0 | BO120: 0 | BP120: 0 | BQ120: 0 | BR120: 0 | BS120: 0 | BT120: 0 | BU120: 0 | BV120: 0 | BW120: 0 | BX120: 0 | CF120: 0 | CG120: 1022.42
A121: 121 | H121: a | I121: צמוד מדד | J121: 17743.48 | K121: 0.9208961317 | L121: 327.4575078 | M121: 9749.833826 | N121: 343.5577696 | O121: 4091.88 | P121: 533.0197168 | R121: 0 | S121: 0 | T121: 0 | U121: 21.14028317 | V121: 0 | W121: 235.0243962 | X121: 342.8631403 | Y121: 409.912317 | Z121: 896.0261387 | AA121: 2.545603753 | AB121: 29.11685966 | AC121: 31.42768298 | AD121: 589.3038613 | CG121: 139.45
A122: 122 | H122: b | I122: לא צמוד | J122: 10577.97 | K122: 0.1760857297 | L122: 62.6135698 | M122: 1864.278223 | N122: 65.69212149 | O122: 1852.29 | P122: 320.4120255 | Q122: 4.35 | R122: 0 | S122: 0 | T122: 0 | U122: 12.70797447 | V122: 0 | W122: 465.5574394 | X122: 671.7805865 | Y122: 1207.204498 | Z122: 1817.768848 | AA122: 5.042560619 | AB122: 57.04941348 | AC122: 92.55550194 | AD122: 1195.521152 | CG122: 882.97
A123: 123 | H123: c | I123: צמוד מט"ח | J123: 0 | K123: 0 | L123: 0 | M123: 0 | N123: 0 | P123: 0 | R123: 0 | S123: 0 | T123: 0 | U123: 0 | V123: 0 | W123: 0 | X123: 0 | Y123: 0 | Z123: 0 | AA123: 0 | AB123: 0 | AC123: 0 | AD123: 0 | CG123: 0
A124: 124 | H124: d | I124: אחר | J124: 0 | K124: 0 | L124: 0 | M124: 0 | N124: 0 | P124: 0 | R124: 0 | S124: 0 | T124: 0 | U124: 0 | V124: 0 | W124: 0 | X124: 0 | Y124: 0 | Z124: 0 | AA124: 0 | AB124: 0 | AC124: 0 | AD124: 0 | CG124: 0
A125: 125 | G125: (ג) | H125: =$H$68 -> בדרוג נמוך מ- BBB- או לא מדורג עם בטוחה מספקת | J125: 0 | K125: 0 | L125: 0 | M125: 0 | N125: 0 | O125: 0 | P125: 0 | Q125: 0 | R125: 0 | S125: 0 | T125: 0 | U125: 0 | V125: 0 | W125: 0 | X125: 0 | Y125: 0 | Z125: 0 | AA125: 0 | AB125: 0 | AC125: 0 | AD125: 0 | AE125: 0 | AF125: 0 | AG125: 0 | AH125: 0 | AI125: 0 | AJ125: 0 | AK125: 0 | AL125: 0 | AM125: 0 | AN125: 0 | AO125: 0 | AP125: 0 | AQ125: 0 | AR125: 0 | AS125: 0 | AT125: 0 | AU125: 0 | AV125: 0 | AW125: 0 | AX125: 0 | AY125: 0 | AZ125: 0 | BA125: 0 | BB125: 0 | BC125: 0 | BD125: 0 | BE125: 0 | BF125: 0 | BG125: 0 | BH125: 0 | BI125: 0 | BJ125: 0 | BK125: 0 | BL125: 0 | BM125: 0 | BN125: 0 | BO125: 0 | BP125: 0 | BQ125: 0 | BR125: 0 | BS125: 0 | BT125: 0 | BU125: 0 | BV125: 0 | BW125: 0 | BX125: 0 | CF125: 0 | CG125: 0
A126: 126 | H126: a | I126: צמוד מדד | J126: 0 | K126: 0 | L126: 0 | M126: 0 | N126: 0 | P126: 0 | R126: 0 | S126: 0 | T126: 0 | U126: 0 | V126: 0 | W126: 0 | X126: 0 | Y126: 0 | Z126: 0 | AA126: 0 | AB126: 0 | AC126: 0 | AD126: 0 | CG126: 0
A127: 127 | H127: b | I127: לא צמוד | J127: 0 | K127: 0 | L127: 0 | M127: 0 | N127: 0 | P127: 0 | R127: 0 | S127: 0 | T127: 0 | U127: 0 | V127: 0 | W127: 0 | X127: 0 | Y127: 0 | Z127: 0 | AA127: 0 | AB127: 0 | AC127: 0 | AD127: 0 | CG127: 0
A128: 128 | H128: c | I128: צמוד מט"ח | J128: 0 | K128: 0 | L128: 0 | M128: 0 | N128: 0 | P128: 0 | R128: 0 | S128: 0 | T128: 0 | U128: 0 | V128: 0 | W128: 0 | X128: 0 | Y128: 0 | Z128: 0 | AA128: 0 | AB128: 0 | AC128: 0 | AD128: 0 | CG128: 0
A129: 129 | H129: d | I129: אחר | J129: 0 | K129: 0 | L129: 0 | M129: 0 | N129: 0 | P129: 0 | R129: 0 | S129: 0 | T129: 0 | U129: 0 | V129: 0 | W129: 0 | X129: 0 | Y129: 0 | Z129: 0 | AA129: 0 | AB129: 0 | AC129: 0 | AD129: 0 | CG129: 0
A130: 130 | G130: (ד) | H130: =$H$55 -> דרוג נמוך מ- BBB- או לא מדורג | J130: 26.17 | K130: 0.001298932248 | L130: 0.46188175 | M130: 13.752228 | N130: 0.4845913135 | O130: 5.77 | P130: 0.7502442961 | Q130: 0 | R130: 0 | S130: 0 | T130: 0 | U130: 0.0297557039 | V130: 0 | W130: 0.336356841 | X130: 0.479296825 | Y130: 0.5758499945 | Z130: 1.260793648 | AA130: 0.003643158968 | AB130: 0.04070317497 | AC130: 0.04415000554 | AD130: 0.8292063515 | AE130: 0 | AF130: 0 | AG130: 0 | AH130: 0 | AI130: 0 | AJ130: 0 | AK130: 0 | AL130: 0 | AM130: 0 | AN130: 0 | AO130: 0 | AP130: 0 | AQ130: 0 | AR130: 0 | AS130: 0 | AT130: 0 | AU130: 0 | AV130: 0 | AW130: 0 | AX130: 0 | AY130: 0 | AZ130: 0 | BA130: 0 | BB130: 0 | BC130: 0 | BD130: 0 | BE130: 0 | BF130: 0 | BG130: 0 | BH130: 0 | BI130: 0 | BJ130: 0 | BK130: 0 | BL130: 0 | BM130: 0 | BN130: 0 | BO130: 0 | BP130: 0 | BQ130: 0 | BR130: 0 | BS130: 0 | BT130: 0 | BU130: 0 | BV130: 0 | BW130: 0 | BX130: 0 | CF130: 0 | CG130: 1.35
A131: 131 | H131: a | I131: צמוד מדד | J131: 26.17 | K131: 0.001298932248 | L131: 0.46188175 | M131: 13.752228 | N131: 0.4845913135 | O131: 5.77 | P131: 0.7502442961 | R131: 0 | S131: 0 | T131: 0 | U131: 0.0297557039 | V131: 0 | W131: 0.336356841 | X131: 0.479296825 | Y131: 0.5758499945 | Z131: 1.260793648 | AA131: 0.003643158968 | AB131: 0.04070317497 | AC131: 0.04415000554 | AD131: 0.8292063515 | CG131: 1.35
A132: 132 | H132: b | I132: לא צמוד | J132: 0 | K132: 0 | L132: 0 | M132: 0 | N132: 0 | P132: 0 | R132: 0 | S132: 0 | T132: 0 | U132: 0 | V132: 0 | W132: 0 | X132: 0 | Y132: 0 | Z132: 0 | AA132: 0 | AB132: 0 | AC132: 0 | AD132: 0 | CG132: 0
A133: 133 | H133: c | I133: צמוד מט"ח | J133: 0 | K133: 0 | L133: 0 | M133: 0 | N133: 0 | P133: 0 | R133: 0 | S133: 0 | T133: 0 | U133: 0 | V133: 0 | W133: 0 | X133: 0 | Y133: 0 | Z133: 0 | AA133: 0 | AB133: 0 | AC133: 0 | AD133: 0 | CG133: 0
A134: 134 | H134: d | I134: אחר | J134: 0 | K134: 0 | L134: 0 | M134: 0 | N134: 0 | P134: 0 | R134: 0 | S134: 0 | T134: 0 | U134: 0 | V134: 0 | W134: 0 | X134: 0 | Y134: 0 | Z134: 0 | AA134: 0 | AB134: 0 | AC134: 0 | AD134: 0 | CG134: 0
A135: 135 | E135: ב) | F135: בחו"ל | J135: 2641439.87 | K135: 51.3124275 | L135: 18245.96613 | M135: 543261.7471 | N135: 19143.07438 | O135: 478002.47 | P135: 69354.68919 | Q135: 166378.26 | R135: 1.216849881 | S135: 0 | T135: 0 | U135: 2750.700813 | V135: 0.1131501189 | W135: 26049.06652 | X135: 60879.28725 | Y135: 99635.88802 | Z135: 94681.18117 | AA135: 282.1434819 | AB135: 5170.032747 | AC135: 7639.011983 | AD135: 62270.48883 | AE135: 0 | AF135: 0 | AG135: 0 | AH135: 868267.52 | AI135: 0 | AJ135: 0 | AK135: 0 | AL135: 0 | AM135: 515.29 | AN135: 0 | AO135: 2665.03 | AP135: 0 | AQ135: 0 | AR135: 0 | AS135: 0 | AT135: 0 | AU135: 0 | AV135: 0 | AW135: 0 | AX135: 0 | AY135: 0 | AZ135: 0 | BA135: 0 | BB135: 0 | BC135: 0 | BD135: 0 | BE135: 0 | BF135: 0 | BG135: 0 | BH135: 0 | BI135: 0 | BJ135: 0 | BK135: 0 | BL135: 0 | BM135: 0 | BN135: 0 | BO135: 0 | BP135: 0 | BQ135: 0 | BR135: 0 | BS135: 0 | BT135: 0 | BU135: 0 | BV135: 0 | BW135: 0 | BX135: 0 | CF135: 0 | CG135: 116195.38
A136: 136 | F136: (1) | G136: סחיר - חברות ישראליות | J136: 158091.55 | K136: 4.483572157 | L136: 1594.294203 | M136: 47469.07059 | N136: 1672.681638 | O136: 36456.96 | P136: 10121.22839 | Q136: 15920.34 | R136: 1.216849881 | S136: 0 | T136: 0 | U136: 401.4216124 | V136: 0.1131501189 | W136: 3133.955402 | X136: 3258.914241 | Y136: 10545.90318 | Z136: 9296.02461 | AA136: 33.94459793 | AB136: 276.7557589 | AC136: 808.5468233 | AD136: 6113.86539 | AE136: 0 | AF136: 0 | AG136: 0 | AH136: 284.48 | AI136: 0 | AJ136: 0 | AK136: 0 | AL136: 0 | AM136: 515.29 | AN136: 0 | AO136: 48.66 | AP136: 0 | AQ136: 0 | AR136: 0 | AS136: 0 | AT136: 0 | AU136: 0 | AV136: 0 | AW136: 0 | AX136: 0 | AY136: 0 | AZ136: 0 | BA136: 0 | BB136: 0 | BC136: 0 | BD136: 0 | BE136: 0 | BF136: 0 | BG136: 0 | BH136: 0 | BI136: 0 | BJ136: 0 | BK136: 0 | BL136: 0 | BM136: 0 | BN136: 0 | BO136: 0 | BP136: 0 | BQ136: 0 | BR136: 0 | BS136: 0 | BT136: 0 | BU136: 0 | BV136: 0 | BW136: 0 | BX136: 0 | CF136: 0 | CG136: 10133.4
A137: 137 | G137: (א) | H137: =$H$78 -> דרוג A- ומעלה | J137: 0 | K137: 0 | L137: 0 | M137: 0 | N137: 0 | P137: 0 | R137: 0 | S137: 0 | T137: 0 | U137: 0 | V137: 0 | W137: 0 | X137: 0 | Y137: 0 | Z137: 0 | AA137: 0 | AB137: 0 | AC137: 0 | AD137: 0 | CG137: 0
A138: 138 | G138: (ב) | H138: =$H$79 -> דרוג BBB- ועד BBB+ | J138: 86104.93 | K138: 2.63142113 | L138: 935.6957593 | M138: 27859.73125 | N138: 981.7015655 | O138: 21041.09 | P138: 5571.112154 | Q138: 7971.45 | R138: 0.5032085975 | S138: 0 | T138: 0 | U138: 220.957846 | V138: 0.04679140254 | W138: 1356.269926 | X138: 1368.208091 | Y138: 4967.421371 | Z138: 3887.412899 | AA138: 14.69007417 | AB138: 116.1919095 | AC138: 380.8486293 | AD138: 2556.697101 | AH138: 284.47 | AM138: 211.89 | AO138: 20.01 | CG138: 6355.9
A139: =A138+1 -> 139 | G139: (ג) | H139: =$H$80 -> דרוג נמוך מ- BBB- או לא מדורג | J139: 71986.62 | K139: 1.852151027 | L139: 658.5984441 | M139: 19609.33933 | N139: 690.9800725 | O139: 15415.87 | P139: 4550.116234 | Q139: 7948.89 | R139: 0.7136412837 | S139: 0 | T139: 0 | U139: 180.4637664 | V139: 0.06635871633 | W139: 1777.685476 | X139: 1890.706151 | Y139: 5578.481806 | Z139: 5408.611712 | AA139: 19.25452375 | AB139: 160.5638494 | AC139: 427.698194 | AD139: 3557.168288 | AH139: 0.01 | AM139: 303.4 | AO139: 28.65 | CG139: 3777.5
A140: 140 | F140: (2) | G140: לא סחיר - חברות ישראליות | J140: 0 | K140: 0 | L140: 0 | M140: 0 | N140: 0 | O140: 0 | P140: 0 | Q140: 0 | R140: 0 | S140: 0 | T140: 0 | U140: 0 | V140: 0 | W140: 0 | X140: 0 | Y140: 0 | Z140: 0 | AA140: 0 | AB140: 0 | AC140: 0 | AD140: 0 | AE140: 0 | AF140: 0 | AG140: 0 | AH140: 0 | AI140: 0 | AJ140: 0 | AK140: 0 | AL140: 0 | AM140: 0 | AN140: 0 | AO140: 0 | AP140: 0 | AQ140: 0 | AR140: 0 | AS140: 0 | AT140: 0 | AU140: 0 | AV140: 0 | AW140: 0 | AX140: 0 | AY140: 0 | AZ140: 0 | BA140: 0 | BB140: 0 | BC140: 0 | BD140: 0 | BE140: 0 | BF140: 0 | BG140: 0 | BH140: 0 | BI140: 0 | BJ140: 0 | BK140: 0 | BL140: 0 | BM140: 0 | BN140: 0 | BO140: 0 | BP140: 0 | BQ140: 0 | BR140: 0 | BS140: 0 | BT140: 0 | BU140: 0 | BV140: 0 | BW140: 0 | BX140: 0 | CF140: 0 | CG140: 0
A141: 141 | G141: (א) | H141: =$H$78 -> דרוג A- ומעלה | J141: 0 | K141: 0 | L141: 0 | M141: 0 | N141: 0 | P141: 0 | R141: 0 | S141: 0 | T141: 0 | U141: 0 | V141: 0 | W141: 0 | X141: 0 | Y141: 0 | Z141: 0 | AA141: 0 | AB141: 0 | AC141: 0 | AD141: 0 | CG141: 0
A142: 142 | G142: (ב) | H142: =$H$79 -> דרוג BBB- ועד BBB+ | J142: 0 | K142: 0 | L142: 0 | M142: 0 | N142: 0 | P142: 0 | R142: 0 | S142: 0 | T142: 0 | U142: 0 | V142: 0 | W142: 0 | X142: 0 | Y142: 0 | Z142: 0 | AA142: 0 | AB142: 0 | AC142: 0 | AD142: 0 | CG142: 0
A143: 143 | G143: (ג) | H143: =$H$68 -> בדרוג נמוך מ- BBB- או לא מדורג עם בטוחה מספקת | J143: 0 | K143: 0 | L143: 0 | M143: 0 | N143: 0 | P143: 0 | R143: 0 | S143: 0 | T143: 0 | U143: 0 | V143: 0 | W143: 0 | X143: 0 | Y143: 0 | Z143: 0 | AA143: 0 | AB143: 0 | AC143: 0 | AD143: 0 | CG143: 0
A144: 144 | G144: (ד) | H144: =H139 -> דרוג נמוך מ- BBB- או לא מדורג | J144: 0 | K144: 0 | L144: 0 | M144: 0 | N144: 0 | P144: 0 | R144: 0 | S144: 0 | T144: 0 | U144: 0 | V144: 0 | W144: 0 | X144: 0 | Y144: 0 | Z144: 0 | AA144: 0 | AB144: 0 | AC144: 0 | AD144: 0 | CG144: 0
A145: 145 | F145: (3) | G145: סחיר - חברות זרות | J145: 2369257.45 | K145: 43.12284966 | L145: 15333.86925 | M145: 456555.9609 | N145: 16087.79702 | O145: 403048.95 | P145: 55876.47346 | Q145: 149866.11 | R145: 0 | S145: 0 | T145: 0 | U145: 2216.136541 | V145: 0 | W145: 19122.91527 | X145: 55373.41106 | Y145: 81694.97494 | Z145: 78426.19697 | AA145: 207.1247311 | AB145: 4702.458938 | AC145: 6263.495061 | AD145: 51579.81303 | AE145: 0 | AF145: 0 | AG145: 0 | AH145: 867983.04 | AI145: 0 | AJ145: 0 | AK145: 0 | AL145: 0 | AM145: 0 | AN145: 0 | AO145: 2616.37 | AP145: 0 | AQ145: 0 | AR145: 0 | AS145: 0 | AT145: 0 | AU145: 0 | AV145: 0 | AW145: 0 | AX145: 0 | AY145: 0 | AZ145: 0 | BA145: 0 | BB145: 0 | BC145: 0 | BD145: 0 | BE145: 0 | BF145: 0 | BG145: 0 | BH145: 0 | BI145: 0 | BJ145: 0 | BK145: 0 | BL145: 0 | BM145: 0 | BN145: 0 | BO145: 0 | BP145: 0 | BQ145: 0 | BR145: 0 | BS145: 0 | BT145: 0 | BU145: 0 | BV145: 0 | BW145: 0 | BX145: 0 | CF145: 0 | CG145: 102259.23
A146: 146 | G146: (א) | H146: =$H$78 -> דרוג A- ומעלה | J146: 589928.02 | K146: 10.73727881 | L146: 3818.022946 | M146: 113679.1442 | N146: 4005.745528 | O146: 100356.28 | P146: 13912.83802 | Q146: 37315.58 | R146: 0 | S146: 0 | T146: 0 | U146: 551.8019806 | V146: 0 | W146: 4761.467442 | X146: 13787.58151 | Y146: 20341.45523 | Z146: 19527.55811 | AA146: 51.57255835 | AB146: 1170.87849 | AC146: 1559.564765 | AD146: 12843.00189 | AH146: 216121.52 | AO146: 651.46 | CG146: 25461.81
A147: 147 | G147: (ב) | H147: =$H$79 -> דרוג BBB- ועד BBB+ | J147: 1372173.49 | K147: 24.97492644 | L147: 8880.727031 | M147: 264417.858 | N147: 9317.370035 | O147: 233428.87 | P147: 32361.28755 | Q147: 86796.1 | R147: 0 | S147: 0 | T147: 0 | U147: 1283.492451 | V147: 0 | W147: 11075.18213 | X147: 32069.93491 | Y147: 47314.26898 | Z147: 45421.12878 | AA147: 119.9578667 | AB147: 2723.465092 | AC147: 3627.551025 | AD147: 29872.84122 | AH147: 502698.98 | AO147: 1515.29 | CG147: 59224.21
A148: 148 | G148: (ג) | H148: =$H$80 -> דרוג נמוך מ- BBB- או לא מדורג | J148: 407155.94 | K148: 7.410644404 | L148: 2635.119276 | M148: 78458.95862 | N148: 2764.681461 | O148: 69263.8 | P148: 9602.34789 | Q148: 25754.43 | R148: 0 | S148: 0 | T148: 0 | U148: 380.8421098 | V148: 0 | W148: 3286.265694 | X148: 9515.894644 | Y148: 14039.25073 | Z148: 13477.51009 | AA148: 35.59430603 | AB148: 808.1153565 | AC148: 1076.379271 | AD148: 8863.969913 | AH148: 149162.54 | AO148: 449.62 | CG148: 17573.21
A149: 149 | F149: (4) | G149: לא סחיר - חברות זרות | J149: 114090.87 | K149: 3.706005688 | L149: 1317.802676 | M149: 39236.7156 | N149: 1382.595718 | O149: 38496.56 | P149: 3356.98734 | Q149: 591.81 | R149: 0 | S149: 0 | T149: 0 | U149: 133.1426601 | V149: 0 | W149: 3792.195847 | X149: 2246.96195 | Y149: 7395.009901 | Z149: 6958.959591 | AA149: 41.07415288 | AB149: 190.8180497 | AC149: 566.9700986 | AD149: 4576.810409 | AE149: 0 | AF149: 0 | AG149: 0 | AH149: 0 | AI149: 0 | AJ149: 0 | AK149: 0 | AL149: 0 | AM149: 0 | AN149: 0 | AO149: 0 | AP149: 0 | AQ149: 0 | AR149: 0 | AS149: 0 | AT149: 0 | AU149: 0 | AV149: 0 | AW149: 0 | AX149: 0 | AY149: 0 | AZ149: 0 | BA149: 0 | BB149: 0 | BC149: 0 | BD149: 0 | BE149: 0 | BF149: 0 | BG149: 0 | BH149: 0 | BI149: 0 | BJ149: 0 | BK149: 0 | BL149: 0 | BM149: 0 | BN149: 0 | BO149: 0 | BP149: 0 | BQ149: 0 | BR149: 0 | BS149: 0 | BT149: 0 | BU149: 0 | BV149: 0 | BW149: 0 | BX149: 0 | CF149: 0 | CG149: 3802.75
A150: 150 | G150: (א) | H150: =$H$78 -> דרוג A- ומעלה | J150: 0 | K150: 0 | L150: 0 | M150: 0 | N150: 0 | P150: 0 | R150: 0 | S150: 0 | T150: 0 | U150: 0 | V150: 0 | W150: 0 | X150: 0 | Y150: 0 | Z150: 0 | AA150: 0 | AB150: 0 | AC150: 0 | AD150: 0 | CG150: 0
A151: 151 | G151: (ב) | H151: =$H$79 -> דרוג BBB- ועד BBB+ | J151: 0 | K151: 0 | L151: 0 | M151: 0 | N151: 0 | P151: 0 | R151: 0 | S151: 0 | T151: 0 | U151: 0 | V151: 0 | W151: 0 | X151: 0 | Y151: 0 | Z151: 0 | AA151: 0 | AB151: 0 | AC151: 0 | AD151: 0 | CG151: 0
A152: 152 | G152: (ג) | H152: =$H$68 -> בדרוג נמוך מ- BBB- או לא מדורג עם בטוחה מספקת | J152: 0 | K152: 0 | L152: 0 | M152: 0 | N152: 0 | P152: 0 | R152: 0 | S152: 0 | T152: 0 | U152: 0 | V152: 0 | W152: 0 | X152: 0 | Y152: 0 | Z152: 0 | AA152: 0 | AB152: 0 | AC152: 0 | AD152: 0 | CG152: 0
A153: 153 | G153: (ד) | H153: =H148 -> דרוג נמוך מ- BBB- או לא מדורג | J153: 114090.87 | K153: 3.706005688 | L153: 1317.802676 | M153: 39236.7156 | N153: 1382.595718 | O153: 38496.56 | P153: 3356.98734 | Q153: 591.81 | R153: 0 | S153: 0 | T153: 0 | U153: 133.1426601 | V153: 0 | W153: 3792.195847 | X153: 2246.96195 | Y153: 7395.009901 | Z153: 6958.959591 | AA153: 41.07415288 | AB153: 190.8180497 | AC153: 566.9700986 | AD153: 4576.810409 | CG153: 3802.75
A154: 154 | W154: 0 | X154: 0 | Y154: 0 | Z154: 0 | AA154: 0 | AB154: 0 | AC154: 0 | AD154: 0 | CG154: 0
A155: 155 | D155: 4) | E155: מניות (למעט חברות מוחזקות) | J155: 13032934.5 | K155: 424.9304247 | L155: 151099.1882 | M155: 4498879.826 | N155: 158528.3551 | O155: 3811231.17 | P155: 34535.53399 | Q155: 179782.47 | R155: 1190722.833 | S155: 0 | T155: 0 | U155: 1369.726006 | V155: 110720.6667 | W155: 586013.4623 | X155: 338734.9107 | Y155: 376392.256 | Z155: 653283.3116 | AA155: 6347.247744 | AB155: 28766.2793 | AC155: 28857.72397 | AD155: 429655.2984 | AE155: 0 | AF155: 0 | AG155: 0 | AH155: 95372.65 | AI155: 3373.77 | AJ155: 0 | AK155: 0 | AL155: 0 | AM155: 0 | AN155: 103145.76 | AO155: 3385.58 | AP155: 0 | AQ155: 0 | AR155: 0 | AS155: 0 | AT155: 0 | AU155: 0 | AV155: 0 | AW155: 0 | AX155: 0 | AY155: 0 | AZ155: 0 | BA155: 0 | BB155: 0 | BC155: 0 | BD155: 0 | BE155: 0 | BF155: 0 | BG155: 0 | BH155: 0 | BI155: 0 | BJ155: 0 | BK155: 0 | BL155: 0 | BM155: 0 | BN155: 0 | BO155: 0 | BP155: 0 | BQ155: 0 | BR155: 0 | BS155: 0 | BT155: 0 | BU155: 0 | BV155: 0 | BW155: 0 | BX155: 0 | CF155: 0 | CG155: 242311.55
A156: 156 | E156: א) | F156: בישראל | J156: 8788787.26 | K156: 295.0098437 | L156: 104901.2857 | M156: 3123367.396 | N156: 110059.018 | O156: 2535005.43 | P156: 2564.007975 | Q156: 44456.97 | R156: 902468.9283 | S156: 0 | T156: 0 | U156: 101.6920255 | V156: 83917.06167 | W156: 404191.973 | X156: 238324.1615 | Y156: 229150.2453 | Z156: 450253.4393 | AA156: 4377.897018 | AB156: 20239.12852 | AC156: 17568.78475 | AD156: 296125.3907 | AE156: 0 | AF156: 0 | AG156: 0 | AH156: 0 | AI156: 0 | AJ156: 0 | AK156: 0 | AL156: 0 | AM156: 0 | AN156: 88342.16 | AO156: 2565.57 | AP156: 0 | AQ156: 0 | AR156: 0 | AS156: 0 | AT156: 0 | AU156: 0 | AV156: 0 | AW156: 0 | AX156: 0 | AY156: 0 | AZ156: 0 | BA156: 0 | BB156: 0 | BC156: 0 | BD156: 0 | BE156: 0 | BF156: 0 | BG156: 0 | BH156: 0 | BI156: 0 | BJ156: 0 | BK156: 0 | BL156: 0 | BM156: 0 | BN156: 0 | BO156: 0 | BP156: 0 | BQ156: 0 | BR156: 0 | BS156: 0 | BT156: 0 | BU156: 0 | BV156: 0 | BW156: 0 | BX156: 0 | CF156: 0 | CG156: 130511.71
A157: 157 | F157: (1) | G157: סחיר | J157: 8090755.16 | K157: 268.0775395 | L157: 95324.54309 | M157: 2838226.128 | N157: 100011.411 | O157: 2374370.47 | P157: 0.4424517644 | Q157: 4626.77 | R157: 894617.145 | S157: 0 | T157: 0 | U157: 0.01754823563 | V157: 83186.955 | W157: 374721.4946 | X157: 221329.439 | Y157: 196090.6785 | Z157: 420563.6672 | AA157: 4058.69543 | AB157: 18795.891 | AC157: 15034.1315 | AD157: 276598.8428 | AE157: 0 | AF157: 0 | AG157: 0 | AH157: 0 | AI157: 0 | AJ157: 0 | AK157: 0 | AL157: 0 | AM157: 0 | AN157: 88342.16 | AO157: 2565.57 | AP157: 0 | AQ157: 0 | AR157: 0 | AS157: 0 | AT157: 0 | AU157: 0 | AV157: 0 | AW157: 0 | AX157: 0 | AY157: 0 | AZ157: 0 | BA157: 0 | BB157: 0 | BC157: 0 | BD157: 0 | BE157: 0 | BF157: 0 | BG157: 0 | BH157: 0 | BI157: 0 | BJ157: 0 | BK157: 0 | BL157: 0 | BM157: 0 | BN157: 0 | BO157: 0 | BP157: 0 | BQ157: 0 | BR157: 0 | BS157: 0 | BT157: 0 | BU157: 0 | BV157: 0 | BW157: 0 | BX157: 0 | CF157: 0 | CG157: 82022.63
A158: 158 | G158: (א) | H158: ='[1]טופס 106 חודשי'!H158 -> ת"א 35 | J158: 5206738.11 | K158: 171.0190695 | L158: 60811.93782 | M158: 1810635.805 | N158: 63801.9078 | O158: 1539624.02 | P158: 0 | Q158: 569.41 | R158: 581773.6317 | S158: 0 | T158: 0 | U158: 0 | V158: 54096.85829 | W158: 243360.9214 | X158: 143795.4904 | Y158: 126862.1315 | Z158: 273400.4484 | AA158: 2635.898591 | AB158: 12211.49963 | AC158: 9726.428518 | AD158: 179811.6516 | AE158: 0 | AF158: 0 | AG158: 0 | AH158: 0 | AI158: 0 | AJ158: 0 | AK158: 0 | AL158: 0 | AM158: 0 | AN158: 57449.32 | AO158: 1668.39 | AP158: 0 | AQ158: 0 | AR158: 0 | AS158: 0 | AT158: 0 | AU158: 0 | AV158: 0 | AW158: 0 | AX158: 0 | AY158: 0 | AZ158: 0 | BA158: 0 | BB158: 0 | BC158: 0 | BD158: 0 | BE158: 0 | BF158: 0 | BG158: 0 | BH158: 0 | BI158: 0 | BJ158: 0 | BK158: 0 | BL158: 0 | BM158: 0 | BN158: 0 | BO158: 0 | BP158: 0 | BQ158: 0 | BR158: 0 | BS158: 0 | BT158: 0 | BU158: 0 | BV158: 0 | BW158: 0 | BX158: 0 | CF158: 0 | CG158: 44331.34
A159: 159 | H159: a | I159: מניות | J159: 5206738.11 | K159: 171.0190695 | L159: 60811.93782 | M159: 1810635.805 | N159: 63801.9078 | O159: 1539624.02 | P159: 0 | Q159: 569.41 | R159: 581773.6317 | S159: 0 | T159: 0 | U159: 0 | V159: 54096.85829 | W159: 243360.9214 | X159: 143795.4904 | Y159: 126862.1315 | Z159: 273400.4484 | AA159: 2635.898591 | AB159: 12211.49963 | AC159: 9726.428518 | AD159: 179811.6516 | AN159: 57449.32 | AO159: 1668.39 | CG159: 44331.34
A160: 160 | H160: b | I160: אופציה 001 Call ח (Long) | J160: 0 | K160: 0 | L160: 0 | M160: 0 | N160: 0 | P160: 0 | R160: 0 | S160: 0 | T160: 0 | U160: 0 | V160: 0 | W160: 0 | X160: 0 | Y160: 0 | Z160: 0 | AA160: 0 | AB160: 0 | AC160: 0 | AD160: 0 | CG160: 0
A161: 161 | H161: c | I161: אופציה 001 Call ח (Short) | J161: 0 | K161: 0 | L161: 0 | M161: 0 | N161: 0 | P161: 0 | R161: 0 | S161: 0 | T161: 0 | U161: 0 | V161: 0 | W161: 0 | X161: 0 | Y161: 0 | Z161: 0 | AA161: 0 | AB161: 0 | AC161: 0 | AD161: 0 | CG161: 0
A162: 162 | G162: (ב) | H162: ='[1]טופס 106 חודשי'!H162 -> ת"א 90 | J162: 2108686.7 | K162: 69.01636861 | L162: 24541.23466 | M162: 730699.2636 | N162: 25747.86542 | O162: 621329.9 | P162: 0 | Q162: 229.8 | R162: 234780.2878 | S162: 0 | T162: 0 | U162: 0 | V162: 21831.30219 | W162: 98210.60812 | X162: 58030.03354 | Y162: 51196.41744 | Z162: 110333.3552 | AA162: 1063.741878 | AB162: 4928.066461 | AC162: 3925.19256 | AD162: 72564.7048 | AN162: 23184.2 | AO162: 673.3 | CG162: 25348.41
A163: 163 | G163: (ג) | H163: מניות היתר | J163: 574237.64 | K163: 21.43708123 | L163: 7622.719818 | M163: 226961.5133 | N163: 7997.509772 | O163: 153953.9 | P163: 0 | Q163: 3805.57 | R163: 55594.22967 | S163: 0 | T163: 0 | U163: 0 | V163: 5169.490332 | W163: 23750.98754 | X163: 13950.312 | Y163: 13132.51918 | Z163: 26270.71688 | AA163: 257.2524555 | AB163: 1184.698 | AC163: 1006.860815 | AD163: 17277.88312 | AN163: 5489.86 | AO163: 159.44 | CG163: 10630.74
A164: 164 | G164: (ד) | H164: מניות זרות הנסחרות בארץ | J164: 201092.71 | K164: 6.605020115 | L164: 2348.650789 | M164: 69929.54615 | N164: 2464.128039 | O164: 59462.65 | P164: 0.4424517644 | Q164: 21.99 | R164: 22468.99582 | S164: 0 | T164: 0 | U164: 0.01754823563 | V164: 2089.304184 | W164: 9398.977495 | X164: 5553.603094 | Y164: 4899.61039 | Z164: 10559.14681 | AA164: 101.8025055 | AB164: 471.6269056 | AC164: 375.6496101 | AD164: 6944.603194 | AN164: 2218.78 | AO164: 64.44 | CG164: 1712.14
A165: 165 | F165: (2) | G165: לא סחיר | J165: 698032.1 | K165: 26.93230423 | L165: 9576.74261 | M165: 285141.2681 | N165: 10047.60695 | O165: 160634.96 | P165: 2563.565523 | Q165: 39830.2 | R165: 7851.783328 | S165: 0 | T165: 0 | U165: 101.6744773 | V165: 730.1066719 | W165: 29470.47841 | X165: 16994.72248 | Y165: 33059.56676 | Z165: 29689.77208 | AA165: 319.2015878 | AB165: 1443.237523 | AC165: 2534.653242 | AD165: 19526.54792 | AN165: 0 | AO165: 0 | CG165: 48489.08
A166: 166 | E166: ב) | F166: בחו"ל | J166: 4244147.24 | K166: 129.920581 | L166: 46197.90248 | M166: 1375512.43 | N166: 48469.3371 | O166: 1276225.74 | P166: 31971.52602 | Q166: 135325.5 | R166: 288253.905 | S166: 0 | T166: 0 | U166: 1268.033981 | V166: 26803.60504 | W166: 181821.4893 | X166: 100410.7492 | Y166: 147242.0108 | Z166: 203029.8722 | AA166: 1969.350727 | AB166: 8527.150777 | AC166: 11288.93923 | AD166: 133529.9078 | AE166: 0 | AF166: 0 | AG166: 0 | AH166: 95372.65 | AI166: 3373.77 | AJ166: 0 | AK166: 0 | AL166: 0 | AM166: 0 | AN166: 14803.6 | AO166: 820.01 | AP166: 0 | AQ166: 0 | AR166: 0 | AS166: 0 | AT166: 0 | AU166: 0 | AV166: 0 | AW166: 0 | AX166: 0 | AY166: 0 | AZ166: 0 | BA166: 0 | BB166: 0 | BC166: 0 | BD166: 0 | BE166: 0 | BF166: 0 | BG166: 0 | BH166: 0 | BI166: 0 | BJ166: 0 | BK166: 0 | BL166: 0 | BM166: 0 | BN166: 0 | BO166: 0 | BP166: 0 | BQ166: 0 | BR166: 0 | BS166: 0 | BT166: 0 | BU166: 0 | BV166: 0 | BW166: 0 | BX166: 0 | CF166: 0 | CG166: 111799.84
A167: 167 | F167: (1) | G167: סחיר | J167: 2743564.74 | K167: 88.58963758 | L167: 31501.20947 | M167: 937927.9762 | N167: 33050.04468 | O167: 792122.94 | P167: 4.212910278 | Q167: 835.53 | R167: 285083.1784 | S167: 0 | T167: 0 | U167: 0.1670897219 | V167: 26508.77157 | W167: 122361.8702 | X167: 72043.73254 | Y167: 68214.96743 | Z167: 137920.3165 | AA167: 1325.3298 | AB167: 6118.147456 | AC167: 5229.992566 | AD167: 90708.26348 | AE167: 0 | AF167: 0 | AG167: 0 | AH167: 95372.65 | AI167: 3373.77 | AJ167: 0 | AK167: 0 | AL167: 0 | AM167: 0 | AN167: 14803.6 | AO167: 820.01 | AP167: 0 | AQ167: 0 | AR167: 0 | AS167: 0 | AT167: 0 | AU167: 0 | AV167: 0 | AW167: 0 | AX167: 0 | AY167: 0 | AZ167: 0 | BA167: 0 | BB167: 0 | BC167: 0 | BD167: 0 | BE167: 0 | BF167: 0 | BG167: 0 | BH167: 0 | BI167: 0 | BJ167: 0 | BK167: 0 | BL167: 0 | BM167: 0 | BN167: 0 | BO167: 0 | BP167: 0 | BQ167: 0 | BR167: 0 | BS167: 0 | BT167: 0 | BU167: 0 | BV167: 0 | BW167: 0 | BX167: 0 | CF167: 0 | CG167: 18149.47
A168: 168 | G168: (א) | H168: חברות ישראליות | J168: 1035101.1 | K168: 33.99864234 | L168: 12089.43149 | M168: 359954.9415 | N168: 12683.83842 | O168: 306077.72 | P168: 0 | Q168: 113.19 | R168: 115656.7687 | S168: 0 | T168: 0 | U168: 0 | V168: 10754.4713 | W168: 48380.22259 | X168: 28586.58993 | Y168: 25220.23286 | Z168: 54352.09028 | AA168: 524.0174134 | AB168: 2427.650071 | AC168: 1933.617142 | AD168: 35746.60972 | AN168: 11420.95 | AO168: 331.68 | CG168: 8813.08
A169: 169 | G169: (ב) | H169: חברות זרות החזקה מתחת ל-10% | J169: 1708461.41 | K169: 54.59092189 | L169: 19411.7519 | M169: 577972.2583 | N169: 20366.1789 | O169: 486044.56 | P169: 4.212910278 | Q169: 722.34 | R169: 169426.1627 | S169: 0 | T169: 0 | U169: 0.1670897219 | V169: 15754.27729 | W169: 73981.53879 | X169: 43457.07809 | Y169: 42994.67885 | Z169: 83568.11161 | AA169: 801.3112078 | AB169: 3690.491906 | AC169: 3296.371152 | AD169: 54961.57839 | AH169: 95372.65 | AI169: 3373.77 | AN169: 3382.63 | AO169: 488.33 | CG169: 9336.37
A170: 170 | G170: (ג) | H170: חברות זרות החזקה של 10% ומעלה | J170: 2.23 | K170: 7.334107252e-05 | L170: 0.02607903758 | M170: 0.7764863431 | N170: 0.02736127824 | O170: 0.66 | P170: 0 | Q170: 0 | R170: 0.2470296751 | S170: 0 | T170: 0 | U170: 0 | V170: 0.02297032488 | W170: 0.1088213309 | X170: 0.06452072645 | Y170: 0.05572741882 | Z170: 0.1146176044 | AA170: 0.001178669078 | AB170: 0.005479273553 | AC170: 0.004272581182 | AD170: 0.0753823956 | AN170: 0.02 | AO170: 0 | CG170: 0.02
A171: 171 | F171: (2) | G171: לא סחיר | J171: 1500582.5 | K171: 41.33094346 | L171: 14696.69301 | M171: 437584.4536 | N171: 15419.29243 | O171: 484102.8 | P171: 31967.31311 | Q171: 134489.97 | R171: 3170.726522 | S171: 0 | T171: 0 | U171: 1267.866891 | V171: 294.8334782 | W171: 59459.61907 | X171: 28367.01668 | Y171: 79027.04334 | Z171: 65109.55571 | AA171: 644.0209267 | AB171: 2409.003321 | AC171: 6058.946661 | AD171: 42821.64429 | AE171: 0 | AF171: 0 | AG171: 0 | AH171: 0 | AI171: 0 | AJ171: 0 | AK171: 0 | AL171: 0 | AM171: 0 | AN171: 0 | AO171: 0 | AP171: 0 | AQ171: 0 | AR171: 0 | AS171: 0 | AT171: 0 | AU171: 0 | AV171: 0 | AW171: 0 | AX171: 0 | AY171: 0 | AZ171: 0 | BA171: 0 | BB171: 0 | BC171: 0 | BD171: 0 | BE171: 0 | BF171: 0 | BG171: 0 | BH171: 0 | BI171: 0 | BJ171: 0 | BK171: 0 | BL171: 0 | BM171: 0 | BN171: 0 | BO171: 0 | BP171: 0 | BQ171: 0 | BR171: 0 | BS171: 0 | BT171: 0 | BU171: 0 | BV171: 0 | BW171: 0 | BX171: 0 | CF171: 0 | CG171: 93650.37
A172: 172 | G172: (א) | H172: חברות ישראליות | J172: 0 | K172: 0 | L172: 0 | M172: 0 | N172: 0 | P172: 0 | R172: 0 | S172: 0 | T172: 0 | U172: 0 | V172: 0 | W172: 0 | X172: 0 | Y172: 0 | Z172: 0 | AA172: 0 | AB172: 0 | AC172: 0 | AD172: 0 | CG172: 0
A173: 173 | G173: (ב) | H173: חברות זרות | J173: 1500582.5 | K173: 41.33094346 | L173: 14696.69301 | M173: 437584.4536 | N173: 15419.29243 | O173: 484102.8 | P173: 31967.31311 | Q173: 134489.97 | R173: 3170.726522 | S173: 0 | T173: 0 | U173: 1267.866891 | V173: 294.8334782 | W173: 59459.61907 | X173: 28367.01668 | Y173: 79027.04334 | Z173: 65109.55571 | AA173: 644.0209267 | AB173: 2409.003321 | AC173: 6058.946661 | AD173: 42821.64429 | AN173: 0 | AO173: 0 | CG173: 93650.37
A174: 174 | J174: 0 | W174: 0 | X174: 0 | Y174: 0 | Z174: 0 | AA174: 0 | AB174: 0 | AC174: 0 | AD174: 0 | CG174: 0
A175: 175 | D175: 5) | E175: השקעות בקרנות סל | J175: 12421833.46 | K175: 287.3182473 | L175: 102166.2639 | M175: 3041933.906 | N175: 107189.5221 | O175: 2568525.33 | P175: 62583.90755 | Q175: 165083.85 | R175: 749561.6674 | S175: 0 | T175: 0 | U175: 2482.162452 | V175: 69698.81256 | W175: 368558.7546 | X175: 240374.3813 | Y175: 291424.8742 | Z175: 473644.0933 | AA175: 3991.945364 | AB175: 20413.2387 | AC175: 22343.33582 | AD175: 311509.0967 | AE175: 1295229.1 | AF175: 394009.46 | AG175: 785080.44 | AH175: 699419.94 | AI175: 5265.2 | AJ175: 437296.06 | AK175: 32596.24 | AL175: 0 | AM175: 19123.28 | AN175: 7748.99 | AO175: 4602.8 | AP175: 11666.01 | AQ175: 25093.34 | AR175: 0 | AS175: 0 | AT175: 0 | AU175: 0 | AV175: 0 | AW175: 0 | AX175: 0 | AY175: 0 | AZ175: 0 | BA175: 0 | BB175: 0 | BC175: 0 | BD175: 0 | BE175: 0 | BF175: 0 | BG175: 0 | BH175: 0 | BI175: 0 | BJ175: 0 | BK175: 0 | BL175: 0 | BM175: 0 | BN175: 0 | BO175: 0 | BP175: 0 | BQ175: 0 | BR175: 0 | BS175: 0 | BT175: 0 | BU175: 0 | BV175: 0 | BW175: 0 | BX175: 0 | CF175: 0 | CG175: 102930.14
A176: 176 | E176: א) | F176: בישראל | J176: 3717268.11 | K176: 46.27863206 | L176: 16456.02039 | M176: 489967.2795 | N176: 17265.12151 | O176: 425989.34 | P176: 45684.79906 | Q176: 139383.26 | R176: 85386.64893 | S176: 0 | T176: 0 | U176: 1811.920944 | V176: 7939.771065 | W176: 51660.25579 | X176: 47748.37004 | Y176: 92193.72343 | Z176: 106377.7629 | AA176: 559.5442138 | AB176: 4054.919955 | AC176: 7068.426569 | AD176: 69963.16708 | AE176: 1295229.1 | AF176: 0 | AG176: 696701.43 | AH176: 5716.13 | AI176: 764.72 | AJ176: 0 | AK176: 27818.53 | AL176: 0 | AM176: 19123.28 | AN176: 7748.99 | AO176: 2152.58 | AP176: 0 | AQ176: 0 | AR176: 0 | AS176: 0 | AT176: 0 | AU176: 0 | AV176: 0 | AW176: 0 | AX176: 0 | AY176: 0 | AZ176: 0 | BA176: 0 | BB176: 0 | BC176: 0 | BD176: 0 | BE176: 0 | BF176: 0 | BG176: 0 | BH176: 0 | BI176: 0 | BJ176: 0 | BK176: 0 | BL176: 0 | BM176: 0 | BN176: 0 | BO176: 0 | BP176: 0 | BQ176: 0 | BR176: 0 | BS176: 0 | BT176: 0 | BU176: 0 | BV176: 0 | BW176: 0 | BX176: 0 | CF176: 0 | CG176: 52456.74
A177: 177 | F177: (1) | G177: שמחקות מדדי מניות בארץ | J177: 842825.45 | K177: 23.06772454 | L177: 8202.553284 | M177: 244225.6768 | N177: 8605.852191 | O177: 207670.54 | P177: 0 | Q177: 76.8 | R177: 78471.91321 | S177: 0 | T177: 0 | U177: 0 | V177: 7296.796791 | W177: 32825.47962 | X177: 19395.70462 | Y177: 17111.66122 | Z177: 36877.32744 | AA177: 355.5403841 | AB177: 1647.135381 | AC177: 1311.938778 | AD177: 24253.70256 | AG177: 137710.91 | AK177: 2809.24 | AN177: 7748.99 | AO177: 225.04 | CG177: 5979.58
A178: 178 | F178: (2) | G178: שמחקות מדדי מניות בחו"ל | J178: 1633809.62 | K178: 2.667739982 | L178: 948.6102244 | M178: 28244.25103 | N178: 995.2510024 | O178: 23678.94 | P178: 0 | Q178: 35.16 | R178: 6913.198652 | S178: 0 | T178: 0 | U178: 0 | V178: 642.8313479 | W178: 3571.793081 | X178: 2096.029537 | Y178: 2125.99174 | Z178: 4042.942955 | AA178: 38.68691939 | AB178: 178.0004634 | AC178: 162.99826 | AD178: 2658.987045 | AE178: 1295229.1 | AG178: 250236.61 | AH178: 5716.13 | AI178: 764.72 | AK178: 5104.71 | AO178: 23.38 | CG178: 398.63
A179: 179 | F179: (3) | G179: שמחקות מדדי אג"ח בארץ | J179: 1240633.04 | K179: 20.54316754 | L179: 7304.856882 | M179: 217497.3516 | N179: 7664.018316 | O179: 194639.86 | P179: 45684.79906 | Q179: 139271.3 | R179: 1.537073534 | S179: 0 | T179: 0 | U179: 1811.920944 | V179: 0.1429264659 | W179: 15262.98309 | X179: 26256.63589 | Y179: 72956.07047 | Z179: 65457.49253 | AA179: 165.3169103 | AB179: 2229.78411 | AC179: 5593.489531 | AD179: 43050.47747 | AG179: 308753.91 | AK179: 19904.58 | AM179: 19123.28 | AO179: 1904.16 | CG179: 46078.53
A180: 180 | F180: (4) | G180: שמחקות מדדי אג"ח בחו"ל | J180: 0 | K180: 0 | L180: 0 | M180: 0 | N180: 0 | P180: 0 | R180: 0 | S180: 0 | T180: 0 | U180: 0 | V180: 0 | W180: 0 | X180: 0 | Y180: 0 | Z180: 0 | AA180: 0 | AB180: 0 | AC180: 0 | AD180: 0 | CG180: 0
A181: 181 | F181: (5) | G181: בחסר | J181: 0 | K181: 0 | L181: 0 | M181: 0 | N181: 0 | P181: 0 | R181: 0 | S181: 0 | T181: 0 | U181: 0 | V181: 0 | W181: 0 | X181: 0 | Y181: 0 | Z181: 0 | AA181: 0 | AB181: 0 | AC181: 0 | AD181: 0 | CG181: 0
A182: 182 | F182: (6) | G182: אחר | J182: 0 | K182: 0 | L182: 0 | M182: 0 | N182: 0 | P182: 0 | R182: 0 | S182: 0 | T182: 0 | U182: 0 | V182: 0 | W182: 0 | X182: 0 | Y182: 0 | Z182: 0 | AA182: 0 | AB182: 0 | AC182: 0 | AD182: 0 | CG182: 0
A183: 183 | E183: ב) | F183: בחו"ל | J183: 8704565.35 | K183: 241.0396153 | L183: 85710.24352 | M183: 2551966.626 | N183: 89924.40054 | O183: 2142535.99 | P183: 16899.10849 | Q183: 25700.59 | R183: 664175.0185 | S183: 0 | T183: 0 | U183: 670.2415081 | V183: 61759.04149 | W183: 316898.4988 | X183: 192626.0113 | Y183: 199231.1507 | Z183: 367266.3304 | AA183: 3432.40115 | AB183: 16358.31875 | AC183: 15274.90925 | AD183: 241545.9296 | AE183: 0 | AF183: 394009.46 | AG183: 88379.01 | AH183: 693703.81 | AI183: 4500.48 | AJ183: 437296.06 | AK183: 4777.71 | AL183: 0 | AM183: 0 | AN183: 0 | AO183: 2450.22 | AP183: 11666.01 | AQ183: 25093.34 | AR183: 0 | AS183: 0 | AT183: 0 | AU183: 0 | AV183: 0 | AW183: 0 | AX183: 0 | AY183: 0 | AZ183: 0 | BA183: 0 | BB183: 0 | BC183: 0 | BD183: 0 | BE183: 0 | BF183: 0 | BG183: 0 | BH183: 0 | BI183: 0 | BJ183: 0 | BK183: 0 | BL183: 0 | BM183: 0 | BN183: 0 | BO183: 0 | BP183: 0 | BQ183: 0 | BR183: 0 | BS183: 0 | BT183: 0 | BU183: 0 | BV183: 0 | BW183: 0 | BX183: 0 | CF183: 0 | CG183: 50473.4
A184: 184 | F184: (1) | G184: שמחקות מדדי מניות | J184: 7846411.54 | K184: 234.5338353 | L184: 83396.88112 | M184: 2483087.769 | N184: 87497.29594 | O184: 2081729.53 | P184: 0 | Q184: 3090.86 | R184: 664175.0185 | S184: 0 | T184: 0 | U184: 0 | V184: 61759.04149 | W184: 314013.497 | X184: 184272.0335 | Y184: 186906.1404 | Z184: 355434.4697 | AA184: 3401.153026 | AB184: 15648.8765 | AC184: 14329.95957 | AD184: 233764.2803 | AG184: 20873.62 | AH184: 544324.62 | AI184: 4500.48 | AJ184: 437296.06 | AK184: 425.81 | AO184: 2055.5 | AP184: 11666.01 | AQ184: 17482.16 | CG184: 35045.94
A185: 185 | F185: (2) | G185: שמחקות מדדים אחרים | J185: 858153.81 | K185: 6.505779924 | L185: 2313.362395 | M185: 68878.85722 | N185: 2427.104603 | O185: 60806.46 | P185: 16899.10849 | Q185: 22609.73 | R185: 0 | S185: 0 | T185: 0 | U185: 670.2415081 | V185: 0 | W185: 2885.001875 | X185: 8353.97775 | Y185: 12325.01031 | Z185: 11831.86069 | AA185: 31.24812453 | AB185: 709.4422501 | AC185: 944.9496896 | AD185: 7781.649315 | AF185: 394009.46 | AG185: 67505.39 | AH185: 149379.19 | AK185: 4351.9 | AO185: 394.72 | AQ185: 7611.18 | CG185: 15427.46
A186: 186 | F186: (3) | G186: בחסר | J186: 0 | K186: 0 | L186: 0 | M186: 0 | N186: 0 | P186: 0 | R186: 0 | S186: 0 | T186: 0 | U186: 0 | V186: 0 | W186: 0 | X186: 0 | Y186: 0 | Z186: 0 | AA186: 0 | AB186: 0 | AC186: 0 | AD186: 0 | CG186: 0
A187: 187 | F187: (4) | G187: אחר | J187: 0 | K187: 0 | L187: 0 | M187: 0 | N187: 0 | P187: 0 | R187: 0 | S187: 0 | T187: 0 | U187: 0 | V187: 0 | W187: 0 | X187: 0 | Y187: 0 | Z187: 0 | AA187: 0 | AB187: 0 | AC187: 0 | AD187: 0 | CG187: 0
A188: 188 | W188: 0 | X188: 0 | Y188: 0 | Z188: 0 | AA188: 0 | AB188: 0 | AC188: 0 | AD188: 0 | CG188: 0
A189: 189 | D189: 6) | E189: תעודות השתתפות בקרנות נאמנות | J189: 2386182.72 | K189: 56.37309758 | L189: 20045.46811 | M189: 596840.7454 | N189: 21031.05335 | O189: 512953.95 | P189: 35227.4516 | Q189: 93148 | R189: 79071.91169 | S189: 0 | T189: 0 | U189: 1397.168395 | V189: 7352.588307 | W189: 51625.54178 | X189: 57598.65718 | Y189: 74213.81974 | Z189: 93542.71467 | AA189: 559.1682184 | AB189: 4891.432821 | AC189: 5689.920264 | AD189: 61521.73533 | AE189: 0 | AF189: 0 | AG189: 0 | AH189: 599728.44 | AI189: 0 | AJ189: 0 | AK189: 0 | AL189: 0 | AM189: 0 | AN189: 102.29 | AO189: 1878.54 | AP189: 0 | AQ189: 0 | AR189: 0 | AS189: 0 | AT189: 0 | AU189: 0 | AV189: 0 | AW189: 0 | AX189: 0 | AY189: 0 | AZ189: 0 | BA189: 0 | BB189: 0 | BC189: 0 | BD189: 0 | BE189: 0 | BF189: 0 | BG189: 0 | BH189: 0 | BI189: 0 | BJ189: 0 | BK189: 0 | BL189: 0 | BM189: 0 | BN189: 0 | BO189: 0 | BP189: 0 | BQ189: 0 | BR189: 0 | BS189: 0 | BT189: 0 | BU189: 0 | BV189: 0 | BW189: 0 | BX189: 0 | CF189: 0 | CG189: 67705.75
A190: 190 | E190: א) | F190: בישראל | J190: 9400.46 | K190: 0.3044935769 | L190: 108.2735657 | M190: 3223.774836 | N190: 113.5971045 | O190: 2741.25 | P190: 0 | Q190: 89.17 | R190: 1035.832025 | S190: 0 | T190: 0 | U190: 0 | V190: 96.31797525 | W190: 433.2968612 | X190: 256.0274598 | Y190: 264.7609668 | Z190: 486.7809659 | AA190: 4.693138813 | AB190: 21.74254021 | AC190: 20.29903319 | AD190: 320.1490341 | AN190: 102.29 | AO190: 2.97 | CG190: 78.93
A191: 191 | E191: ב) | F191: בחו"ל | J191: 2376782.26 | K191: 56.06860401 | L191: 19937.19455 | M191: 593616.9706 | N191: 20917.45624 | O191: 510212.7 | P191: 35227.4516 | Q191: 93058.83 | R191: 78036.07967 | S191: 0 | T191: 0 | U191: 1397.168395 | V191: 7256.270332 | W191: 51192.24492 | X191: 57342.62972 | Y191: 73949.05877 | Z191: 93055.9337 | AA191: 554.4750795 | AB191: 4869.690281 | AC191: 5669.621231 | AD191: 61201.5863 | AE191: 0 | AF191: 0 | AG191: 0 | AH191: 599728.44 | AI191: 0 | AJ191: 0 | AK191: 0 | AL191: 0 | AM191: 0 | AN191: 0 | AO191: 1875.57 | AP191: 0 | AQ191: 0 | AR191: 0 | AS191: 0 | AT191: 0 | AU191: 0 | AV191: 0 | AW191: 0 | AX191: 0 | AY191: 0 | AZ191: 0 | BA191: 0 | BB191: 0 | BC191: 0 | BD191: 0 | BE191: 0 | BF191: 0 | BG191: 0 | BH191: 0 | BI191: 0 | BJ191: 0 | BK191: 0 | BL191: 0 | BM191: 0 | BN191: 0 | BO191: 0 | BP191: 0 | BQ191: 0 | BR191: 0 | BS191: 0 | BT191: 0 | BU191: 0 | BV191: 0 | BW191: 0 | BX191: 0 | CF191: 0 | CG191: 67626.82
A192: 192 | F192: (1) | G192: אג"ח קנצרני | J192: 1467770.32 | K192: 26.66548234 | L192: 9481.864558 | M192: 282316.336 | N192: 9948.063981 | O192: 249229.68 | P192: 35227.4516 | Q192: 92671.33 | R192: 1840.700453 | S192: 0 | T192: 0 | U192: 1397.168395 | V192: 171.1595475 | W192: 11824.85228 | X192: 34240.75318 | Y192: 50516.97017 | Z192: 48495.69172 | AA192: 128.077718 | AB192: 2907.816816 | AC192: 3873.099826 | AD192: 31894.93828 | AH192: 536726.74 | AO192: 1617.87 | CG192: 63233.09
A193: 193 | F193: (2) | G193: אג"ח ממשלתי | J193: 0 | K193: 0 | L193: 0 | M193: 0 | N193: 0 | P193: 0 | R193: 0 | S193: 0 | T193: 0 | U193: 0 | V193: 0 | W193: 0 | X193: 0 | Y193: 0 | Z193: 0 | AA193: 0 | AB193: 0 | AC193: 0 | AD193: 0 | CG193: 0
A194: 194 | F194: (3) | G194: מניות | J194: 909011.94 | K194: 29.40312167 | L194: 10455.32999 | M194: 311300.6346 | N194: 10969.39226 | O194: 260983.02 | P194: 0 | Q194: 387.5 | R194: 76195.37922 | S194: 0 | T194: 0 | U194: 0 | V194: 7085.110784 | W194: 39367.39264 | X194: 23101.87654 | Y194: 23432.08859 | Z194: 44560.24198 | AA194: 426.3973615 | AB194: 1961.873464 | AC194: 1796.521405 | AD194: 29306.64802 | AH194: 63001.7 | AO194: 257.7 | CG194: 4393.73
A195: 195 | F195: (4) | G195: אחר | J195: 0 | K195: 0 | L195: 0 | M195: 0 | N195: 0 | P195: 0 | R195: 0 | S195: 0 | T195: 0 | U195: 0 | V195: 0 | W195: 0 | X195: 0 | Y195: 0 | Z195: 0 | AA195: 0 | AB195: 0 | AC195: 0 | AD195: 0 | CG195: 0
A196: 196 | W196: 0 | X196: 0 | Y196: 0 | Z196: 0 | AA196: 0 | AB196: 0 | AC196: 0 | AD196: 0 | CG196: 0
A197: 197 | D197: 7) | E197: קרנות השקעה | J197: 11281211.22 | K197: 317.9502411 | L197: 113058.5633 | M197: 3366245.018 | N197: 118617.3684 | O197: 3727848.72 | P197: 50897.98697 | Q197: 809838.45 | R197: 341034.8783 | S197: 0 | T197: 0 | U197: 2018.683031 | V197: 31711.50166 | W197: 492500.6908 | X197: 214928.2271 | Y197: 578465.2636 | Z197: 415726.931 | AA197: 5334.389225 | AB197: 18252.28288 | AC197: 44350.51635 | AD197: 273417.789 | AE197: 0 | AF197: 0 | AG197: 0 | AH197: 0 | AI197: 0 | AJ197: 0 | AK197: 0 | AL197: 0 | AM197: 0 | AN197: 0 | AO197: 0 | AP197: 0 | AQ197: 0 | AR197: 0 | AS197: 0 | AT197: 0 | AU197: 0 | AV197: 0 | AW197: 0 | AX197: 0 | AY197: 0 | AZ197: 0 | BA197: 0 | BB197: 0 | BC197: 0 | BD197: 0 | BE197: 0 | BF197: 0 | BG197: 0 | BH197: 0 | BI197: 0 | BJ197: 0 | BK197: 0 | BL197: 0 | BM197: 0 | BN197: 0 | BO197: 0 | BP197: 0 | BQ197: 0 | BR197: 0 | BS197: 0 | BT197: 0 | BU197: 0 | BV197: 0 | BW197: 0 | BX197: 0 | CF197: 0 | CG197: 676646.01
A198: 198 | E198: א) | F198: בישראל | J198: 1845607.68 | K198: 73.80984391 | L198: 26245.72599 | M198: 781449.3819 | N198: 27536.1623 | O198: 572484.68 | P198: 4997.973604 | Q198: 105921.8 | R198: 45412.29776 | S198: 0 | T198: 0 | U198: 198.2263957 | V198: 4222.712242 | W198: 40393.43929 | X198: 17553.48119 | Y198: 58277.84916 | Z198: 30291.39386 | AA198: 437.5107108 | AB198: 1490.688815 | AC198: 4468.120844 | AD198: 19922.22614 | AE198: 0 | AF198: 0 | AG198: 0 | AH198: 0 | AI198: 0 | AJ198: 0 | AK198: 0 | AL198: 0 | AM198: 0 | AN198: 0 | AO198: 0 | AP198: 0 | AQ198: 0 | AR198: 0 | AS198: 0 | AT198: 0 | AU198: 0 | AV198: 0 | AW198: 0 | AX198: 0 | AY198: 0 | AZ198: 0 | BA198: 0 | BB198: 0 | BC198: 0 | BD198: 0 | BE198: 0 | BF198: 0 | BG198: 0 | BH198: 0 | BI198: 0 | BJ198: 0 | BK198: 0 | BL198: 0 | BM198: 0 | BN198: 0 | BO198: 0 | BP198: 0 | BQ198: 0 | BR198: 0 | BS198: 0 | BT198: 0 | BU198: 0 | BV198: 0 | BW198: 0 | BX198: 0 | CF198: 0 | CG198: 104230.2
A199: 199 | F199: (1) | G199: קרנות הון סיכון | J199: 206422.95 | K199: 7.554648275 | L199: 2686.324995 | M199: 79983.57552 | N199: 2818.404836 | O199: 56365.52 | P199: 0 | Q199: 7058.99 | R199: 10962.44504 | S199: 0 | T199: 0 | U199: 0 | V199: 1019.354958 | W199: 9974.06855 | X199: 5377.59977 | Y199: 8242.401032 | Z199: 5490.134991 | AA199: 108.0314501 | AB199: 456.6802301 | AC199: 631.938968 | AD199: 3610.785009 | CG199: 11629.14
A200: 200 | F200: (2) | G200: קרנות גידור | J200: 323417.73 | K200: 13.22101135 | L200: 4701.20275 | M200: 139975.2472 | N200: 4932.349061 | O200: 110642.09 | P200: 1282.013606 | Q200: 11917.55 | R200: 16084.6694 | S200: 0 | T200: 0 | U200: 50.84639423 | V200: 1495.6506 | W200: 6030.11641 | X200: 2148.604711 | Y200: 6664.637062 | Z200: 4180.134195 | AA200: 65.31358962 | AB200: 182.4652886 | AC200: 510.9729375 | AD200: 2749.215805 | CG200: 9791.43
A201: 201 | F201: (3) | G201: קרנות נדל"ן | J201: 107785.79 | K201: 1.342041777 | L201: 477.2108826 | M201: 14208.64293 | N201: 500.674141 | O201: 40628.45 | P201: 680.5581432 | Q201: 14633.69 | R201: 0 | S201: 0 | T201: 0 | U201: 26.99185679 | V201: 0 | W201: 6173.295603 | X201: 2483.937361 | Y201: 7996.494509 | Z201: 5308.641031 | AA201: 66.86439667 | AB201: 210.9426388 | AC201: 613.0854915 | AD201: 3491.418969 | CG201: 10283.55
A202: 202 | F202: (4) | G202: קרנות השקעה אחרות | J202: 1207981.21 | K202: 51.69214251 | L202: 18380.98736 | M202: 547281.9162 | N202: 19284.73427 | O202: 364848.62 | P202: 3035.401855 | Q202: 72311.57 | R202: 18365.18332 | S202: 0 | T202: 0 | U202: 120.3881446 | V202: 1707.706684 | W202: 18215.95873 | X202: 7543.339343 | Y202: 35374.31655 | Z202: 15312.48364 | AA202: 197.3012744 | AB202: 640.6006572 | AC202: 2712.123447 | AD202: 10070.80636 | CG202: 72526.08
... 334 more rows
